{"text_format":"1","workbook":"xlsx","n_sheets":5,"sheets":["Conso Direction","DIR1","DIR2","DIR3","DIR4"],"not_rendered":{"charts":0,"images":0,"macros":1,"external_links":0,"defined_names":0,"comments":0,"pivot_tables":0},"unopened":[],"bounds":{"document_bytes":16777216,"sheet_cells":100000,"rows_first":2000,"rows_last":500,"rows_between":2000,"halvings":0,"cell_chars":16384,"cell_head_chars":4096},"cells_cut":0,"cells_raw":0,"read":"whole","date_system":"1900"}

{"sheet":"Conso Direction","index":0,"n_rows":22,"n_cols":8,"rows_kept":22,"cut":false,"hidden":false,"merged":[[0,1,0,4]]}
[null,"Consolidation Budget DPIT"]
[]
[null,null,"Bugdet ","Engagé","Réceptionné","Maturité forte","Maturité faible","Atterissage"]
[null,"RE00001",{"$f":"Budget(B4)","v":4},{"$f":"engagé(B4)","v":220},{"$f":"receptionné(B4)","v":64},{"$f":"MFORTE(B4)","v":480},{"$f":"+MFAIBLE(B4)","v":128},{"$f":"+Atterissage(B4)","v":892}]
[null,"ME00700",{"$f":"Budget(B5)","v":50},{"$f":"engagé(B5)","v":200},{"$f":"receptionné(B5)","v":60},{"$f":"MFORTE(B5)","v":260},{"$f":"+MFAIBLE(B5)","v":0},{"$f":"+Atterissage(B5)","v":320}]
[]
[null,null,"Bugdet ","Engagé","Réceptionné","Maturité forte","Maturité faible","Atterrissage"]
[null,"PIT0054",{"$f":"Budget(B8)","v":0},{"$f":"engagé(B8)","v":0},{"$f":"receptionné(B8)","v":0},{"$f":"MFORTE(B8)","v":0},{"$f":"+MFAIBLE(B8)","v":0},{"$f":"+Atterissage(B8)","v":0}]
[null,"PIT0052",{"$f":"Budget(B9)","v":0},{"$f":"engagé(B9)","v":0},{"$f":"receptionné(B9)","v":0},{"$f":"MFORTE(B9)","v":0},{"$f":"+MFAIBLE(B9)","v":0},{"$f":"+Atterissage(B9)","v":0}]
[null,"PI00008",{"$f":"Budget(B10)","v":0},{"$f":"engagé(B10)","v":0},{"$f":"receptionné(B10)","v":0},{"$f":"MFORTE(B10)","v":0},{"$f":"+MFAIBLE(B10)","v":0},{"$f":"+Atterissage(B10)","v":0}]
[null,"PIT0043",{"$f":"Budget(B11)","v":0},{"$f":"engagé(B11)","v":0},{"$f":"receptionné(B11)","v":0},{"$f":"MFORTE(B11)","v":0},{"$f":"+MFAIBLE(B11)","v":0},{"$f":"+Atterissage(B11)","v":0}]
[null,"PIT0056",{"$f":"Budget(B12)","v":0},{"$f":"engagé(B12)","v":0},{"$f":"receptionné(B12)","v":0},{"$f":"MFORTE(B12)","v":0},{"$f":"+MFAIBLE(B12)","v":0},{"$f":"+Atterissage(B12)","v":0}]
[null,"PIT0060",{"$f":"Budget(B13)","v":0},{"$f":"engagé(B13)","v":0},{"$f":"receptionné(B13)","v":0},{"$f":"MFORTE(B13)","v":0},{"$f":"+MFAIBLE(B13)","v":0},{"$f":"+Atterissage(B13)","v":0}]
[null,"PIT0048",{"$f":"Budget(B14)","v":0},{"$f":"engagé(B14)","v":0},{"$f":"receptionné(B14)","v":0},{"$f":"MFORTE(B14)","v":0},{"$f":"+MFAIBLE(B14)","v":0},{"$f":"+Atterissage(B14)","v":0}]
[null,"PIT0025",{"$f":"Budget(B15)","v":0},{"$f":"engagé(B15)","v":0},{"$f":"receptionné(B15)","v":0},{"$f":"MFORTE(B15)","v":0},{"$f":"+MFAIBLE(B15)","v":0},{"$f":"+Atterissage(B15)","v":0}]
[null,null,{"$f":"Budget(B16)","v":0},{"$f":"engagé(B16)","v":0},{"$f":"receptionné(B16)","v":0},{"$f":"MFORTE(B16)","v":0},{"$f":"+MFAIBLE(B16)","v":0},{"$f":"+Atterissage(B16)","v":0}]
[null,null,{"$f":"Budget(B17)","v":0},{"$f":"engagé(B17)","v":0},{"$f":"receptionné(B17)","v":0},{"$f":"MFORTE(B17)","v":0},{"$f":"+MFAIBLE(B17)","v":0},{"$f":"+Atterissage(B17)","v":0}]
[null,null,{"$f":"Budget(B18)","v":0},{"$f":"engagé(B18)","v":0},{"$f":"receptionné(B18)","v":0},{"$f":"MFORTE(B18)","v":0},{"$f":"+MFAIBLE(B18)","v":0},{"$f":"+Atterissage(B18)","v":0}]
[null,null,{"$f":"Budget(B19)","v":0},{"$f":"engagé(B19)","v":0},{"$f":"receptionné(B19)","v":0},{"$f":"MFORTE(B19)","v":0},{"$f":"+MFAIBLE(B19)","v":0},{"$f":"+Atterissage(B19)","v":0}]
[null,null,{"$f":"Budget(B20)","v":0},{"$f":"engagé(B20)","v":0},{"$f":"receptionné(B20)","v":0},{"$f":"MFORTE(B20)","v":0},{"$f":"+MFAIBLE(B20)","v":0},{"$f":"+Atterissage(B20)","v":0}]
[null,null,{"$f":"Budget(B21)","v":0},{"$f":"engagé(B21)","v":0},{"$f":"receptionné(B21)","v":0},{"$f":"MFORTE(B21)","v":0},{"$f":"+MFAIBLE(B21)","v":0},{"$f":"+Atterissage(B21)","v":0}]
[null,null,{"$f":"Budget(B22)","v":0},{"$f":"engagé(B22)","v":0},{"$f":"receptionné(B22)","v":0},{"$f":"MFORTE(B22)","v":0},{"$f":"+MFAIBLE(B22)","v":0},{"$f":"+Atterissage(B22)","v":0}]

{"sheet":"DIR1","index":1,"n_rows":515,"n_cols":18,"rows_kept":515,"cut":false,"hidden":false,"merged":[[487,0,497,0],[498,0,498,8],[500,2,500,8],[503,0,513,0],[514,0,514,8],[484,2,484,8],[423,0,433,0],[434,0,434,8],[436,2,436,8],[439,0,449,0],[450,0,450,8],[452,2,452,8],[455,0,465,0],[466,0,466,8],[468,2,468,8],[471,0,481,0],[482,0,482,8],[420,2,420,8],[359,0,369,0],[370,0,370,8],[372,2,372,8],[375,0,385,0],[386,0,386,8],[388,2,388,8],[391,0,401,0],[402,0,402,8],[404,2,404,8],[407,0,417,0],[418,0,418,8],[356,2,356,8],[295,0,305,0],[306,0,306,8],[308,2,308,8],[311,0,321,0],[322,0,322,8],[324,2,324,8],[327,0,337,0],[338,0,338,8],[340,2,340,8],[343,0,353,0],[354,0,354,8],[292,2,292,8],[231,0,241,0],[242,0,242,8],[244,2,244,8],[247,0,257,0],[258,0,258,8],[260,2,260,8],[263,0,273,0],[274,0,274,8],[276,2,276,8],[279,0,289,0],[290,0,290,8],[228,2,228,8],[167,0,177,0],[178,0,178,8],[180,2,180,8],[183,0,193,0],[194,0,194,8],[196,2,196,8],[199,0,209,0],[210,0,210,8],[212,2,212,8],[215,0,225,0],[226,0,226,8],[164,2,164,8],[103,0,113,0],[114,0,114,8],[116,2,116,8],[119,0,129,0],[130,0,130,8],[132,2,132,8],[135,0,145,0],[146,0,146,8],[148,2,148,8],[151,0,161,0],[162,0,162,8],[100,2,100,8],[39,0,49,0],[50,0,50,8],[52,2,52,8],[55,0,65,0],[66,0,66,8],[68,2,68,8],[71,0,81,0],[82,0,82,8],[84,2,84,8],[87,0,97,0],[98,0,98,8],[2,11,2,17],[5,0,15,0],[7,10,36,10],[17,0,17,8],[21,0,31,0],[33,0,33,8],[36,2,36,8]]}
["CF"]
[null,"Suivi budget direction 1"]
[null,null,null,null,null,null,null,null,null,null,null,"SYNTHESE DU DEPARTEMENT"]
["Code Fond","Budget ",null,"CUMUL","Engagé","Réceptionné","M. Forte",null,"Atterissage",null,"Type","Code fond","Budget","Engagé","Réceptionné","M. Forte","M. Faible","Atterissage"]
["RE00001",null,null,null,{"$f":"SUM(E7:E18)","v":55},{"$f":"SUM(F7:F18)","v":16},{"$f":"SUM(G7:G18)","v":120},{"$f":"SUM(H7:H18)","v":32},{"$f":"SUM(I7:I18)","v":223},null,"MIB",{"$f":"A5","v":"RE00001"},{"$f":"B5","v":0},{"$f":"E5","v":55},{"$f":"F5","v":16},120,32,223]
["MIB",null,"N° SAP","Description","Engagé","Réceptionné","Maturité forte","Maturité faible","Atterrissage",null,"MEVO",{"$f":"A21","v":"ME00700"},{"$f":"B21","v":0},{"$f":"E21","v":50},{"$f":"F21","v":15},65,0,80]
[null,null,4400785440,"Commande T1",55,null,null,null,{"$f":"IF(F7=\"\",E7,F7)+G7+H7","v":55}]
[null,null,null,"Commande T2",null,16,40,null,{"$f":"IF(F8=\"\",E8,F8)+G8+H8","v":56},null,"PROJETS",{"$f":"A39","v":"PIT0054"},{"$f":"B39","v":0},{"$f":"E39","v":45},{"$f":"F39","v":25},27,14,111]
[null,null,null,"Commande T3",null,null,40,16,{"$f":"IF(F9=\"\",E9,F9)+G9+H9","v":56},null,null,{"$f":"#REF!","v":{"$error":"#REF!"}},{"$f":"B55","v":0},{"$f":"E55","v":0},{"$f":"F55","v":0},0,0,0]
[null,null,null,"Commande T4",null,null,40,16,56,null,null,{"$f":"#REF!","v":{"$error":"#REF!"}},{"$f":"B71","v":0},{"$f":"E71","v":0},{"$f":"F71","v":0},0,0,0]
[null,null,null,0,null,null,null,null,0,null,null,{"$f":"#REF!","v":{"$error":"#REF!"}},{"$f":"B87","v":0},{"$f":"E87","v":0},{"$f":"F87","v":0},0,0,0]
[null,null,null,0,null,null,null,null,0,null,null,{"$f":"A103","v":"PIT0056"},{"$f":"B103","v":0},{"$f":"E103","v":0},{"$f":"F103","v":0},0,0,0]
[null,null,null,0,null,null,null,null,0,null,null,{"$f":"A119","v":"PIT0060"},{"$f":"B119","v":0},{"$f":"E119","v":90},{"$f":"F119","v":35},87,46,168]
[null,null,null,0,null,null,null,null,0,null,null,{"$f":"A135","v":"PIT0048"},{"$f":"B135","v":0},{"$f":"E135","v":0},{"$f":"F135","v":0},0,0,0]
[null,null,null,0,null,null,null,null,0,null,null,{"$f":"A151","v":0},{"$f":"B151","v":0},{"$f":"E151","v":0},{"$f":"F151","v":0},0,0,0]
[null,null,null,0,null,null,null,null,0,null,null,{"$f":"A167","v":0},{"$f":"B167","v":0},{"$f":"E167","v":0},{"$f":"F167","v":0},0,0,0]
[null,null,null,0,null,null,null,null,0,null,null,{"$f":"A183","v":0},{"$f":"B183","v":0},{"$f":"E183","v":0},{"$f":"F183","v":0},0,0,0]
["Insérer des cellules ici si nécessaire",null,null,null,null,null,null,null,null,null,null,{"$f":"A199","v":0},{"$f":"B199","v":0},{"$f":"E199","v":0},{"$f":"F199","v":0},0,0,0]
[null,null,null,null,null,null,null,null,null,null,null,{"$f":"A215","v":0},{"$f":"B215","v":0},{"$f":"E215","v":0},{"$f":"F215","v":0},0,0,0]
["Code Fond","Budget ",null,null,"Engagé","Réceptionné","M. Forte",null,"Atterissage",null,null,{"$f":"A231","v":0},{"$f":"B231","v":0},{"$f":"E231","v":0},{"$f":"F231","v":0},0,0,0]
["ME00700",null,null,null,{"$f":"SUM(E23:E34)","v":50},{"$f":"SUM(F23:F34)","v":15},{"$f":"SUM(G23:G34)","v":65},{"$f":"SUM(H23:H34)","v":0},{"$f":"SUM(I23:I34)","v":80},null,null,{"$f":"A247","v":0},{"$f":"B247","v":0},{"$f":"E247","v":0},{"$f":"F247","v":0},0,0,0]
["MEV",null,"N° SAP","Description","Engagé","Réceptionné","Maturité forte","Maturité faible","Atterrissage",null,null,{"$f":"A263","v":0},{"$f":"B263","v":0},{"$f":"E263","v":0},{"$f":"F263","v":0},0,0,0]
[null,null,4400765263,"Maintenance évolutive 1",50,15,null,null,{"$f":"IF(F23=\"\",E23,F23)+G23+H23","v":15},null,null,{"$f":"A279","v":0},{"$f":"B279","v":0},{"$f":"C279","v":0},0,0,0,0]
[null,null,null,"Maintenance évolutive 2",null,null,15,null,{"$f":"IF(F24=\"\",E24,F24)+G24+H24","v":15},null,null,{"$f":"A295","v":0},{"$f":"B295","v":0},{"$f":"E295","v":0},{"$f":"F295","v":0},0,0,0]
[null,null,null,"Maintenance évolutive 3",null,null,20,null,{"$f":"IF(F25=\"\",E25,F25)+G25+H25","v":20},null,null,{"$f":"A311","v":0},{"$f":"B311","v":0},{"$f":"E311","v":0},{"$f":"F311","v":0},0,0,0]
[null,null,null,"Maintenance évolutive 4",null,null,30,null,30,null,null,{"$f":"A327","v":0},{"$f":"B327","v":0},{"$f":"E327","v":0},{"$f":"F327","v":0},0,0,0]
[null,null,null,0,null,null,null,null,0,null,null,{"$f":"A343","v":0},{"$f":"B343","v":0},{"$f":"E343","v":0},{"$f":"F343","v":0},0,0,0]
[null,null,null,0,null,null,null,null,0,null,null,{"$f":"A359","v":0},{"$f":"B359","v":0},{"$f":"E359","v":0},{"$f":"F359","v":0},0,0,0]
[null,null,null,0,null,null,null,null,0,null,null,{"$f":"A375","v":0},{"$f":"B375","v":0},{"$f":"E375","v":0},{"$f":"F375","v":0},0,0,0]
[null,null,null,0,null,null,null,null,0,null,null,{"$f":"A391","v":0},{"$f":"B391","v":0},{"$f":"E391","v":0},{"$f":"F391","v":0},0,0,0]
[null,null,null,0,null,null,null,null,0,null,null,{"$f":"A407","v":0},{"$f":"B407","v":0},{"$f":"E407","v":0},{"$f":"F407","v":0},0,0,0]
[null,null,null,0,null,null,null,null,0,null,null,{"$f":"A423","v":0},{"$f":"B423","v":0},{"$f":"E423","v":0},{"$f":"F423","v":0},0,0,0]
[null,null,null,0,null,null,null,null,null,null,null,{"$f":"A439","v":0},{"$f":"B439","v":0},{"$f":"E439","v":0},{"$f":"F439","v":0},0,0,0]
["Insérer des cellules ici si nécessaire",null,null,null,null,null,null,null,null,null,null,{"$f":"A455","v":0},{"$f":"B455","v":0},{"$f":"E455","v":0},{"$f":"F455","v":0},0,0,0]
[null,null,null,null,null,null,null,null,null,null,null,{"$f":"A471","v":0},{"$f":"B471","v":0},{"$f":"E471","v":0},{"$f":"F471","v":0},0,0,0]
[null,null,null,null,null,null,null,null,null,null,null,{"$f":"A487","v":0},{"$f":"B487","v":0},{"$f":"E487","v":0},{"$f":"F487","v":0},0,0,0]
[null,null,"TP-004 Nouvel Environnement de Travail (Services Front)",null,null,null,null,null,null,null,null,{"$f":"A503","v":0},{"$f":"B503","v":0},{"$f":"E503","v":0},{"$f":"F503","v":0},0,0,0]
["Code Fond","Budget ",null,null,"Engagé","Réceptionné","M. Forte",null,"Atterissage"]
["PIT0054",null,null,null,{"$f":"SUM(E41:E51)","v":45},{"$f":"SUM(F41:F51)","v":25},{"$f":"SUM(G41:G51)","v":27},{"$f":"SUM(H41:H51)","v":14},{"$f":"SUM(I41:I51)","v":111}]
[null,null,"N° SAP","Description","Engagé","Réceptionné","Maturité forte","Maturité faible","Atterrissage"]
[null,null,4400596354,"Projet NET T1",45,null,null,null,{"$f":"IF(F41=\"\",E41,F41)+G41+H41","v":45}]
[null,null,null,"Projet NET T2",null,25,null,null,{"$f":"IF(F42=\"\",E42,F42)+G42+H42","v":25}]
[null,null,null,"Projet NET T3",null,null,12,null,12]
[null,null,null,"Projet NET T4",null,null,15,14,29]
[null,null,null,0,null,null,null,null,0]
[null,null,null,0,null,null,null,null,0]
[null,null,null,0,null,null,null,null,0]
[null,null,null,0,null,null,null,null,0]
[null,null,null,0,null,null,null,null,0]
[null,null,null,0,null,null,null,null,0]
["Insérer des lignes ici si nécessaire"]
[]
[null,null,""]
[null,"Budget ",null,null,"Engagé","Réceptionné","M. Forte",null,"Atterissage"]
["PIT0052",null,null,null,{"$f":"SUM(E57:E67)","v":0},{"$f":"SUM(F57:F67)","v":0},{"$f":"SUM(G57:G67)","v":0},{"$f":"SUM(H57:H67)","v":0},{"$f":"SUM(I57:I67)","v":0}]
[null,null,"N° SAP","Description","Engagé","Réceptionné","Maturité forte","Maturité faible","Atterrissage"]
[null,null,null,null,null,null,null,null,{"$f":"IF(F57=\"\",E57,F57)+G57+H57","v":0}]
[null,null,null,null,null,null,null,null,{"$f":"IF(F58=\"\",E58,F58)+G58+H58","v":0}]
[null,null,null,null,null,null,null,null,0]
[null,null,null,null,null,null,null,null,0]
[null,null,null,null,null,null,null,null,0]
[null,null,null,null,null,null,null,null,0]
[null,null,null,null,null,null,null,null,0]
[null,null,null,null,null,null,null,null,0]
[null,null,null,null,null,null,null,null,0]
[null,null,null,null,null,null,null,null,0]
["Insérer des lignes ici si nécessaire"]
[]
[null,null,""]
[null,"Budget ",null,null,"Engagé","Réceptionné","M. Forte",null,"Atterissage"]
["PI00008",null,null,null,{"$f":"SUM(E73:E83)","v":0},{"$f":"SUM(F73:F83)","v":0},{"$f":"SUM(G73:G83)","v":0},{"$f":"SUM(H73:H83)","v":0},{"$f":"SUM(I73:I83)","v":0}]
[null,null,"N° SAP","Description","Engagé","Réceptionné","Maturité forte","Maturité faible","Atterrissage"]
[null,null,null,null,null,null,null,null,{"$f":"IF(F73=\"\",E73,F73)+G73+H73","v":0}]
[null,null,null,null,null,null,null,null,{"$f":"IF(F74=\"\",E74,F74)+G74+H74","v":0}]
[null,null,null,null,null,null,null,null,0]
[null,null,null,null,null,null,null,null,0]
[null,null,null,null,null,null,null,null,0]
[null,null,null,null,null,null,null,null,0]
[null,null,null,null,null,null,null,null,0]
[null,null,null,null,null,null,null,null,0]
[null,null,null,null,null,null,null,null,0]
[null,null,null,null,null,null,null,null,0]
["Insérer des lignes ici si nécessaire"]
[]
[null,null,""]
[null,"Budget ",null,null,"Engagé","Réceptionné","M. Forte",null,"Atterissage"]
["PIT0043",null,null,null,{"$f":"SUM(E89:E99)","v":0},{"$f":"SUM(F89:F99)","v":0},{"$f":"SUM(G89:G99)","v":0},{"$f":"SUM(H89:H99)","v":0},{"$f":"SUM(I89:I99)","v":0}]
[null,null,"N° SAP","Description","Engagé","Réceptionné","Maturité forte","Maturité faible","Atterrissage"]
[null,null,null,null,null,null,null,null,{"$f":"IF(F89=\"\",E89,F89)+G89+H89","v":0}]
[null,null,null,null,null,null,null,null,{"$f":"IF(F90=\"\",E90,F90)+G90+H90","v":0}]
[null,null,null,null,null,null,null,null,0]
[null,null,null,null,null,null,null,null,0]
[null,null,null,null,null,null,null,null,0]
[null,null,null,null,null,null,null,null,0]
[null,null,null,null,null,null,null,null,0]
[null,null,null,null,null,null,null,null,0]
[null,null,null,null,null,null,null,null,0]
[null,null,null,null,null,null,null,null,0]
["Insérer des lignes ici si nécessaire"]
[]
[null,null,""]
["Code Fond","Budget ",null,null,"Engagé","Réceptionné","M. Forte",null,"Atterissage"]
["PIT0056",null,null,null,{"$f":"SUM(E105:E115)","v":0},{"$f":"SUM(F105:F115)","v":0},{"$f":"SUM(G105:G115)","v":0},{"$f":"SUM(H105:H115)","v":0},{"$f":"SUM(I105:I115)","v":0}]
[null,null,"N° SAP","Description","Engagé","Réceptionné","Maturité forte","Maturité faible","Atterrissage"]
[null,null,null,null,null,null,null,null,{"$f":"IF(F105=\"\",E105,F105)+G105+H105","v":0}]
[null,null,null,null,null,null,null,null,{"$f":"IF(F106=\"\",E106,F106)+G106+H106","v":0}]
[null,null,null,null,null,null,null,null,0]
[null,null,null,null,null,null,null,null,0]
[null,null,null,null,null,null,null,null,0]
[null,null,null,null,null,null,null,null,0]
[null,null,null,null,null,null,null,null,0]
[null,null,null,null,null,null,null,null,0]
[null,null,null,null,null,null,null,null,0]
[null,null,null,null,null,null,null,null,0]
["Insérer des lignes ici si nécessaire"]
[]
[null,null,""]
["Code Fond","Budget ",null,null,"Engagé","Réceptionné","M. Forte",null,"Atterissage"]
["PIT0060",null,null,null,{"$f":"SUM(E121:E131)","v":90},{"$f":"SUM(F121:F131)","v":35},{"$f":"SUM(G121:G131)","v":87},{"$f":"SUM(H121:H131)","v":46},{"$f":"SUM(I121:I131)","v":168}]
[null,null,"N° SAP","Description","Engagé","Réceptionné","Maturité forte","Maturité faible","Atterrissage"]
[null,null,null,null,40,20,42,23,{"$f":"IF(F121=\"\",E121,F121)+G121+H121","v":85}]
[null,null,null,null,50,15,45,23,{"$f":"IF(F122=\"\",E122,F122)+G122+H122","v":83}]
[null,null,null,null,null,null,null,null,0]
[null,null,null,null,null,null,null,null,0]
[null,null,null,null,null,null,null,null,0]
[null,null,null,null,null,null,null,null,0]
[null,null,null,null,null,null,null,null,0]
[null,null,null,null,null,null,null,null,0]
[null,null,null,null,null,null,null,null,0]
[null,null,null,null,null,null,null,null,0]
["Insérer des lignes ici si nécessaire"]
[]
[null,null,""]
["Code Fond","Budget ",null,null,"Engagé","Réceptionné","M. Forte",null,"Atterissage"]
["PIT0048",null,null,null,{"$f":"SUM(E137:E147)","v":0},{"$f":"SUM(F137:F147)","v":0},{"$f":"SUM(G137:G147)","v":0},{"$f":"SUM(H137:H147)","v":0},{"$f":"SUM(I137:I147)","v":0}]
[null,null,"N° SAP","Description","Engagé","Réceptionné","Maturité forte","Maturité faible","Atterrissage"]
[null,null,null,null,null,null,null,null,{"$f":"IF(F137=\"\",E137,F137)+G137+H137","v":0}]
[null,null,null,null,null,null,null,null,{"$f":"IF(F138=\"\",E138,F138)+G138+H138","v":0}]
[null,null,null,null,null,null,null,null,0]
[null,null,null,null,null,null,null,null,0]
[null,null,null,null,null,null,null,null,0]
[null,null,null,null,null,null,null,null,0]
[null,null,null,null,null,null,null,null,0]
[null,null,null,null,null,null,null,null,0]
[null,null,null,null,null,null,null,null,0]
[null,null,null,null,null,null,null,null,0]
["Insérer des lignes ici si nécessaire"]
[]
[null,null,""]
["Code Fond","Budget ",null,null,"Engagé","Réceptionné","M. Forte",null,"Atterissage"]
[null,null,null,null,{"$f":"SUM(E153:E163)","v":0},{"$f":"SUM(F153:F163)","v":0},{"$f":"SUM(G153:G163)","v":0},{"$f":"SUM(H153:H163)","v":0},{"$f":"SUM(I153:I163)","v":0}]
[null,null,"N° SAP","Description","Engagé","Réceptionné","Maturité forte","Maturité faible","Atterrissage"]
[null,null,null,null,null,null,null,null,{"$f":"IF(F153=\"\",E153,F153)+G153+H153","v":0}]
[null,null,null,null,null,null,null,null,{"$f":"IF(F154=\"\",E154,F154)+G154+H154","v":0}]
[null,null,null,null,null,null,null,null,0]
[null,null,null,null,null,null,null,null,0]
[null,null,null,null,null,null,null,null,0]
[null,null,null,null,null,null,null,null,0]
[null,null,null,null,null,null,null,null,0]
[null,null,null,null,null,null,null,null,0]
[null,null,null,null,null,null,null,null,0]
[null,null,null,null,null,null,null,null,0]
["Insérer des lignes ici si nécessaire"]
[]
[null,null,""]
["Code Fond","Budget ",null,null,"Engagé","Réceptionné","M. Forte",null,"Atterissage"]
[null,null,null,null,{"$f":"SUM(E169:E179)","v":0},{"$f":"SUM(F169:F179)","v":0},{"$f":"SUM(G169:G179)","v":0},{"$f":"SUM(H169:H179)","v":0},{"$f":"SUM(I169:I179)","v":0}]
[null,null,"N° SAP","Description","Engagé","Réceptionné","Maturité forte","Maturité faible","Atterrissage"]
[null,null,null,null,null,null,null,null,{"$f":"IF(F169=\"\",E169,F169)+G169+H169","v":0}]
[null,null,null,null,null,null,null,null,{"$f":"IF(F170=\"\",E170,F170)+G170+H170","v":0}]
[null,null,null,null,null,null,null,null,0]
[null,null,null,null,null,null,null,null,0]
[null,null,null,null,null,null,null,null,0]
[null,null,null,null,null,null,null,null,0]
[null,null,null,null,null,null,null,null,0]
[null,null,null,null,null,null,null,null,0]
[null,null,null,null,null,null,null,null,0]
[null,null,null,null,null,null,null,null,0]
["Insérer des lignes ici si nécessaire"]
[]
[null,null,""]
["Code Fond","Budget ",null,null,"Engagé","Réceptionné","M. Forte",null,"Atterissage"]
[null,null,null,null,{"$f":"SUM(E185:E195)","v":0},{"$f":"SUM(F185:F195)","v":0},{"$f":"SUM(G185:G195)","v":0},{"$f":"SUM(H185:H195)","v":0},{"$f":"SUM(I185:I195)","v":0}]
[null,null,"N° SAP","Description","Engagé","Réceptionné","Maturité forte","Maturité faible","Atterrissage"]
[null,null,null,null,null,null,null,null,{"$f":"IF(F185=\"\",E185,F185)+G185+H185","v":0}]
[null,null,null,null,null,null,null,null,{"$f":"IF(F186=\"\",E186,F186)+G186+H186","v":0}]
[null,null,null,null,null,null,null,null,0]
[null,null,null,null,null,null,null,null,0]
[null,null,null,null,null,null,null,null,0]
[null,null,null,null,null,null,null,null,0]
[null,null,null,null,null,null,null,null,0]
[null,null,null,null,null,null,null,null,0]
[null,null,null,null,null,null,null,null,0]
[null,null,null,null,null,null,null,null,0]
["Insérer des lignes ici si nécessaire"]
[]
[null,null,""]
["Code Fond","Budget ",null,null,"Engagé","Réceptionné","M. Forte",null,"Atterissage"]
[null,null,null,null,{"$f":"SUM(E201:E211)","v":0},{"$f":"SUM(F201:F211)","v":0},{"$f":"SUM(G201:G211)","v":0},{"$f":"SUM(H201:H211)","v":0},{"$f":"SUM(I201:I211)","v":0}]
[null,null,"N° SAP","Description","Engagé","Réceptionné","Maturité forte","Maturité faible","Atterrissage"]
[null,null,null,null,null,null,null,null,{"$f":"IF(F201=\"\",E201,F201)+G201+H201","v":0}]
[null,null,null,null,null,null,null,null,{"$f":"IF(F202=\"\",E202,F202)+G202+H202","v":0}]
[null,null,null,null,null,null,null,null,0]
[null,null,null,null,null,null,null,null,0]
[null,null,null,null,null,null,null,null,0]
[null,null,null,null,null,null,null,null,0]
[null,null,null,null,null,null,null,null,0]
[null,null,null,null,null,null,null,null,0]
[null,null,null,null,null,null,null,null,0]
[null,null,null,null,null,null,null,null,0]
["Insérer des lignes ici si nécessaire"]
[]
[null,null,""]
["Code Fond","Budget ",null,null,"Engagé","Réceptionné","M. Forte",null,"Atterissage"]
[null,null,null,null,{"$f":"SUM(E217:E227)","v":0},{"$f":"SUM(F217:F227)","v":0},{"$f":"SUM(G217:G227)","v":0},{"$f":"SUM(H217:H227)","v":0},{"$f":"SUM(I217:I227)","v":0}]
[null,null,"N° SAP","Description","Engagé","Réceptionné","Maturité forte","Maturité faible","Atterrissage"]
[null,null,null,null,null,null,null,null,{"$f":"IF(F217=\"\",E217,F217)+G217+H217","v":0}]
[null,null,null,null,null,null,null,null,{"$f":"IF(F218=\"\",E218,F218)+G218+H218","v":0}]
[null,null,null,null,null,null,null,null,0]
[null,null,null,null,null,null,null,null,0]
[null,null,null,null,null,null,null,null,0]
[null,null,null,null,null,null,null,null,0]
[null,null,null,null,null,null,null,null,0]
[null,null,null,null,null,null,null,null,0]
[null,null,null,null,null,null,null,null,0]
[null,null,null,null,null,null,null,null,0]
["Insérer des lignes ici si nécessaire"]
[]
[null,null,""]
["Code Fond","Budget ",null,null,"Engagé","Réceptionné","M. Forte",null,"Atterissage"]
[null,null,null,null,{"$f":"SUM(E233:E243)","v":0},{"$f":"SUM(F233:F243)","v":0},{"$f":"SUM(G233:G243)","v":0},{"$f":"SUM(H233:H243)","v":0},{"$f":"SUM(I233:I243)","v":0}]
[null,null,"N° SAP","Description","Engagé","Réceptionné","Maturité forte","Maturité faible","Atterrissage"]
[null,null,null,null,null,null,null,null,{"$f":"IF(F233=\"\",E233,F233)+G233+H233","v":0}]
[null,null,null,null,null,null,null,null,{"$f":"IF(F234=\"\",E234,F234)+G234+H234","v":0}]
[null,null,null,null,null,null,null,null,0]
[null,null,null,null,null,null,null,null,0]
[null,null,null,null,null,null,null,null,0]
[null,null,null,null,null,null,null,null,0]
[null,null,null,null,null,null,null,null,0]
[null,null,null,null,null,null,null,null,0]
[null,null,null,null,null,null,null,null,0]
[null,null,null,null,null,null,null,null,0]
["Insérer des lignes ici si nécessaire"]
[]
[null,null,""]
["Code Fond","Budget ",null,null,"Engagé","Réceptionné","M. Forte",null,"Atterissage"]
[null,null,null,null,{"$f":"SUM(E249:E259)","v":0},{"$f":"SUM(F249:F259)","v":0},{"$f":"SUM(G249:G259)","v":0},{"$f":"SUM(H249:H259)","v":0},{"$f":"SUM(I249:I259)","v":0}]
[null,null,"N° SAP","Description","Engagé","Réceptionné","Maturité forte","Maturité faible","Atterrissage"]
[null,null,null,null,null,null,null,null,{"$f":"IF(F249=\"\",E249,F249)+G249+H249","v":0}]
[null,null,null,null,null,null,null,null,{"$f":"IF(F250=\"\",E250,F250)+G250+H250","v":0}]
[null,null,null,null,null,null,null,null,0]
[null,null,null,null,null,null,null,null,0]
[null,null,null,null,null,null,null,null,0]
[null,null,null,null,null,null,null,null,0]
[null,null,null,null,null,null,null,null,0]
[null,null,null,null,null,null,null,null,0]
[null,null,null,null,null,null,null,null,0]
[null,null,null,null,null,null,null,null,0]
["Insérer des lignes ici si nécessaire"]
[]
[null,null,""]
["Code Fond","Budget ",null,null,"Engagé","Réceptionné","M. Forte",null,"Atterissage"]
[null,null,null,null,{"$f":"SUM(E265:E275)","v":0},{"$f":"SUM(F265:F275)","v":0},{"$f":"SUM(G265:G275)","v":0},{"$f":"SUM(H265:H275)","v":0},{"$f":"SUM(I265:I275)","v":0}]
[null,null,"N° SAP","Description","Engagé","Réceptionné","Maturité forte","Maturité faible","Atterrissage"]
[null,null,null,null,null,null,null,null,{"$f":"IF(F265=\"\",E265,F265)+G265+H265","v":0}]
[null,null,null,null,null,null,null,null,{"$f":"IF(F266=\"\",E266,F266)+G266+H266","v":0}]
[null,null,null,null,null,null,null,null,0]
[null,null,null,null,null,null,null,null,0]
[null,null,null,null,null,null,null,null,0]
[null,null,null,null,null,null,null,null,0]
[null,null,null,null,null,null,null,null,0]
[null,null,null,null,null,null,null,null,0]
[null,null,null,null,null,null,null,null,0]
[null,null,null,null,null,null,null,null,0]
["Insérer des lignes ici si nécessaire"]
[]
[null,null,""]
["Code Fond","Budget ",null,null,"Engagé","Réceptionné","M. Forte",null,"Atterissage"]
[null,null,null,null,{"$f":"SUM(E281:E291)","v":0},{"$f":"SUM(F281:F291)","v":0},{"$f":"SUM(G281:G291)","v":0},{"$f":"SUM(H281:H291)","v":0},{"$f":"SUM(I281:I291)","v":0}]
[null,null,"N° SAP","Description","Engagé","Réceptionné","Maturité forte","Maturité faible","Atterrissage"]
[null,null,null,null,null,null,null,null,{"$f":"IF(F281=\"\",E281,F281)+G281+H281","v":0}]
[null,null,null,null,null,null,null,null,{"$f":"IF(F282=\"\",E282,F282)+G282+H282","v":0}]
[null,null,null,null,null,null,null,null,0]
[null,null,null,null,null,null,null,null,0]
[null,null,null,null,null,null,null,null,0]
[null,null,null,null,null,null,null,null,0]
[null,null,null,null,null,null,null,null,0]
[null,null,null,null,null,null,null,null,0]
[null,null,null,null,null,null,null,null,0]
[null,null,null,null,null,null,null,null,0]
["Insérer des lignes ici si nécessaire"]
[]
[null,null,""]
["Code Fond","Budget ",null,null,"Engagé","Réceptionné","M. Forte",null,"Atterissage"]
[null,null,null,null,{"$f":"SUM(E297:E307)","v":0},{"$f":"SUM(F297:F307)","v":0},{"$f":"SUM(G297:G307)","v":0},{"$f":"SUM(H297:H307)","v":0},{"$f":"SUM(I297:I307)","v":0}]
[null,null,"N° SAP","Description","Engagé","Réceptionné","Maturité forte","Maturité faible","Atterrissage"]
[null,null,null,null,null,null,null,null,{"$f":"IF(F297=\"\",E297,F297)+G297+H297","v":0}]
[null,null,null,null,null,null,null,null,{"$f":"IF(F298=\"\",E298,F298)+G298+H298","v":0}]
[null,null,null,null,null,null,null,null,0]
[null,null,null,null,null,null,null,null,0]
[null,null,null,null,null,null,null,null,0]
[null,null,null,null,null,null,null,null,0]
[null,null,null,null,null,null,null,null,0]
[null,null,null,null,null,null,null,null,0]
[null,null,null,null,null,null,null,null,0]
[null,null,null,null,null,null,null,null,0]
["Insérer des lignes ici si nécessaire"]
[]
[null,null,""]
["Code Fond","Budget ",null,null,"Engagé","Réceptionné","M. Forte",null,"Atterissage"]
[null,null,null,null,{"$f":"SUM(E313:E323)","v":0},{"$f":"SUM(F313:F323)","v":0},{"$f":"SUM(G313:G323)","v":0},{"$f":"SUM(H313:H323)","v":0},{"$f":"SUM(I313:I323)","v":0}]
[null,null,"N° SAP","Description","Engagé","Réceptionné","Maturité forte","Maturité faible","Atterrissage"]
[null,null,null,null,null,null,null,null,{"$f":"IF(F313=\"\",E313,F313)+G313+H313","v":0}]
[null,null,null,null,null,null,null,null,{"$f":"IF(F314=\"\",E314,F314)+G314+H314","v":0}]
[null,null,null,null,null,null,null,null,0]
[null,null,null,null,null,null,null,null,0]
[null,null,null,null,null,null,null,null,0]
[null,null,null,null,null,null,null,null,0]
[null,null,null,null,null,null,null,null,0]
[null,null,null,null,null,null,null,null,0]
[null,null,null,null,null,null,null,null,0]
[null,null,null,null,null,null,null,null,0]
["Insérer des lignes ici si nécessaire"]
[]
[null,null,""]
["Code Fond","Budget ",null,null,"Engagé","Réceptionné","M. Forte",null,"Atterissage"]
[null,null,null,null,{"$f":"SUM(E329:E339)","v":0},{"$f":"SUM(F329:F339)","v":0},{"$f":"SUM(G329:G339)","v":0},{"$f":"SUM(H329:H339)","v":0},{"$f":"SUM(I329:I339)","v":0}]
[null,null,"N° SAP","Description","Engagé","Réceptionné","Maturité forte","Maturité faible","Atterrissage"]
[null,null,null,null,null,null,null,null,{"$f":"IF(F329=\"\",E329,F329)+G329+H329","v":0}]
[null,null,null,null,null,null,null,null,{"$f":"IF(F330=\"\",E330,F330)+G330+H330","v":0}]
[null,null,null,null,null,null,null,null,0]
[null,null,null,null,null,null,null,null,0]
[null,null,null,null,null,null,null,null,0]
[null,null,null,null,null,null,null,null,0]
[null,null,null,null,null,null,null,null,0]
[null,null,null,null,null,null,null,null,0]
[null,null,null,null,null,null,null,null,0]
[null,null,null,null,null,null,null,null,0]
["Insérer des lignes ici si nécessaire"]
[]
[null,null,""]
["Code Fond","Budget ",null,null,"Engagé","Réceptionné","M. Forte",null,"Atterissage"]
[null,null,null,null,{"$f":"SUM(E345:E355)","v":0},{"$f":"SUM(F345:F355)","v":0},{"$f":"SUM(G345:G355)","v":0},{"$f":"SUM(H345:H355)","v":0},{"$f":"SUM(I345:I355)","v":0}]
[null,null,"N° SAP","Description","Engagé","Réceptionné","Maturité forte","Maturité faible","Atterrissage"]
[null,null,null,null,null,null,null,null,{"$f":"IF(F345=\"\",E345,F345)+G345+H345","v":0}]
[null,null,null,null,null,null,null,null,{"$f":"IF(F346=\"\",E346,F346)+G346+H346","v":0}]
[null,null,null,null,null,null,null,null,0]
[null,null,null,null,null,null,null,null,0]
[null,null,null,null,null,null,null,null,0]
[null,null,null,null,null,null,null,null,0]
[null,null,null,null,null,null,null,null,0]
[null,null,null,null,null,null,null,null,0]
[null,null,null,null,null,null,null,null,0]
[null,null,null,null,null,null,null,null,0]
["Insérer des lignes ici si nécessaire"]
[]
[null,null,""]
["Code Fond","Budget ",null,null,"Engagé","Réceptionné","M. Forte",null,"Atterissage"]
[null,null,null,null,{"$f":"SUM(E361:E371)","v":0},{"$f":"SUM(F361:F371)","v":0},{"$f":"SUM(G361:G371)","v":0},{"$f":"SUM(H361:H371)","v":0},{"$f":"SUM(I361:I371)","v":0}]
[null,null,"N° SAP","Description","Engagé","Réceptionné","Maturité forte","Maturité faible","Atterrissage"]
[null,null,null,null,null,null,null,null,{"$f":"IF(F361=\"\",E361,F361)+G361+H361","v":0}]
[null,null,null,null,null,null,null,null,{"$f":"IF(F362=\"\",E362,F362)+G362+H362","v":0}]
[null,null,null,null,null,null,null,null,0]
[null,null,null,null,null,null,null,null,0]
[null,null,null,null,null,null,null,null,0]
[null,null,null,null,null,null,null,null,0]
[null,null,null,null,null,null,null,null,0]
[null,null,null,null,null,null,null,null,0]
[null,null,null,null,null,null,null,null,0]
[null,null,null,null,null,null,null,null,0]
["Insérer des lignes ici si nécessaire"]
[]
[null,null,""]
["Code Fond","Budget ",null,null,"Engagé","Réceptionné","M. Forte",null,"Atterissage"]
[null,null,null,null,{"$f":"SUM(E377:E387)","v":0},{"$f":"SUM(F377:F387)","v":0},{"$f":"SUM(G377:G387)","v":0},{"$f":"SUM(H377:H387)","v":0},{"$f":"SUM(I377:I387)","v":0}]
[null,null,"N° SAP","Description","Engagé","Réceptionné","Maturité forte","Maturité faible","Atterrissage"]
[null,null,null,null,null,null,null,null,{"$f":"IF(F377=\"\",E377,F377)+G377+H377","v":0}]
[null,null,null,null,null,null,null,null,{"$f":"IF(F378=\"\",E378,F378)+G378+H378","v":0}]
[null,null,null,null,null,null,null,null,0]
[null,null,null,null,null,null,null,null,0]
[null,null,null,null,null,null,null,null,0]
[null,null,null,null,null,null,null,null,0]
[null,null,null,null,null,null,null,null,0]
[null,null,null,null,null,null,null,null,0]
[null,null,null,null,null,null,null,null,0]
[null,null,null,null,null,null,null,null,0]
["Insérer des lignes ici si nécessaire"]
[]
[null,null,""]
["Code Fond","Budget ",null,null,"Engagé","Réceptionné","M. Forte",null,"Atterissage"]
[null,null,null,null,{"$f":"SUM(E393:E403)","v":0},{"$f":"SUM(F393:F403)","v":0},{"$f":"SUM(G393:G403)","v":0},{"$f":"SUM(H393:H403)","v":0},{"$f":"SUM(I393:I403)","v":0}]
[null,null,"N° SAP","Description","Engagé","Réceptionné","Maturité forte","Maturité faible","Atterrissage"]
[null,null,null,null,null,null,null,null,{"$f":"IF(F393=\"\",E393,F393)+G393+H393","v":0}]
[null,null,null,null,null,null,null,null,{"$f":"IF(F394=\"\",E394,F394)+G394+H394","v":0}]
[null,null,null,null,null,null,null,null,0]
[null,null,null,null,null,null,null,null,0]
[null,null,null,null,null,null,null,null,0]
[null,null,null,null,null,null,null,null,0]
[null,null,null,null,null,null,null,null,0]
[null,null,null,null,null,null,null,null,0]
[null,null,null,null,null,null,null,null,0]
[null,null,null,null,null,null,null,null,0]
["Insérer des lignes ici si nécessaire"]
[]
[null,null,""]
["Code Fond","Budget ",null,null,"Engagé","Réceptionné","M. Forte",null,"Atterissage"]
[null,null,null,null,{"$f":"SUM(E409:E419)","v":0},{"$f":"SUM(F409:F419)","v":0},{"$f":"SUM(G409:G419)","v":0},{"$f":"SUM(H409:H419)","v":0},{"$f":"SUM(I409:I419)","v":0}]
[null,null,"N° SAP","Description","Engagé","Réceptionné","Maturité forte","Maturité faible","Atterrissage"]
[null,null,null,null,null,null,null,null,{"$f":"IF(F409=\"\",E409,F409)+G409+H409","v":0}]
[null,null,null,null,null,null,null,null,{"$f":"IF(F410=\"\",E410,F410)+G410+H410","v":0}]
[null,null,null,null,null,null,null,null,0]
[null,null,null,null,null,null,null,null,0]
[null,null,null,null,null,null,null,null,0]
[null,null,null,null,null,null,null,null,0]
[null,null,null,null,null,null,null,null,0]
[null,null,null,null,null,null,null,null,0]
[null,null,null,null,null,null,null,null,0]
[null,null,null,null,null,null,null,null,0]
["Insérer des lignes ici si nécessaire"]
[]
[null,null,""]
["Code Fond","Budget ",null,null,"Engagé","Réceptionné","M. Forte",null,"Atterissage"]
[null,null,null,null,{"$f":"SUM(E425:E435)","v":0},{"$f":"SUM(F425:F435)","v":0},{"$f":"SUM(G425:G435)","v":0},{"$f":"SUM(H425:H435)","v":0},{"$f":"SUM(I425:I435)","v":0}]
[null,null,"N° SAP","Description","Engagé","Réceptionné","Maturité forte","Maturité faible","Atterrissage"]
[null,null,null,null,null,null,null,null,{"$f":"IF(F425=\"\",E425,F425)+G425+H425","v":0}]
[null,null,null,null,null,null,null,null,{"$f":"IF(F426=\"\",E426,F426)+G426+H426","v":0}]
[null,null,null,null,null,null,null,null,0]
[null,null,null,null,null,null,null,null,0]
[null,null,null,null,null,null,null,null,0]
[null,null,null,null,null,null,null,null,0]
[null,null,null,null,null,null,null,null,0]
[null,null,null,null,null,null,null,null,0]
[null,null,null,null,null,null,null,null,0]
[null,null,null,null,null,null,null,null,0]
["Insérer des lignes ici si nécessaire"]
[]
[null,null,""]
["Code Fond","Budget ",null,null,"Engagé","Réceptionné","M. Forte",null,"Atterissage"]
[null,null,null,null,{"$f":"SUM(E441:E451)","v":0},{"$f":"SUM(F441:F451)","v":0},{"$f":"SUM(G441:G451)","v":0},{"$f":"SUM(H441:H451)","v":0},{"$f":"SUM(I441:I451)","v":0}]
[null,null,"N° SAP","Description","Engagé","Réceptionné","Maturité forte","Maturité faible","Atterrissage"]
[null,null,null,null,null,null,null,null,{"$f":"IF(F441=\"\",E441,F441)+G441+H441","v":0}]
[null,null,null,null,null,null,null,null,{"$f":"IF(F442=\"\",E442,F442)+G442+H442","v":0}]
[null,null,null,null,null,null,null,null,0]
[null,null,null,null,null,null,null,null,0]
[null,null,null,null,null,null,null,null,0]
[null,null,null,null,null,null,null,null,0]
[null,null,null,null,null,null,null,null,0]
[null,null,null,null,null,null,null,null,0]
[null,null,null,null,null,null,null,null,0]
[null,null,null,null,null,null,null,null,0]
["Insérer des lignes ici si nécessaire"]
[]
[null,null,""]
["Code Fond","Budget ",null,null,"Engagé","Réceptionné","M. Forte",null,"Atterissage"]
[null,null,null,null,{"$f":"SUM(E457:E467)","v":0},{"$f":"SUM(F457:F467)","v":0},{"$f":"SUM(G457:G467)","v":0},{"$f":"SUM(H457:H467)","v":0},{"$f":"SUM(I457:I467)","v":0}]
[null,null,"N° SAP","Description","Engagé","Réceptionné","Maturité forte","Maturité faible","Atterrissage"]
[null,null,null,null,null,null,null,null,{"$f":"IF(F457=\"\",E457,F457)+G457+H457","v":0}]
[null,null,null,null,null,null,null,null,{"$f":"IF(F458=\"\",E458,F458)+G458+H458","v":0}]
[null,null,null,null,null,null,null,null,0]
[null,null,null,null,null,null,null,null,0]
[null,null,null,null,null,null,null,null,0]
[null,null,null,null,null,null,null,null,0]
[null,null,null,null,null,null,null,null,0]
[null,null,null,null,null,null,null,null,0]
[null,null,null,null,null,null,null,null,0]
[null,null,null,null,null,null,null,null,0]
["Insérer des lignes ici si nécessaire"]
[]
[null,null,""]
["Code Fond","Budget ",null,null,"Engagé","Réceptionné","M. Forte",null,"Atterissage"]
[null,null,null,null,{"$f":"SUM(E473:E483)","v":0},{"$f":"SUM(F473:F483)","v":0},{"$f":"SUM(G473:G483)","v":0},{"$f":"SUM(H473:H483)","v":0},{"$f":"SUM(I473:I483)","v":0}]
[null,null,"N° SAP","Description","Engagé","Réceptionné","Maturité forte","Maturité faible","Atterrissage"]
[null,null,null,null,null,null,null,null,{"$f":"IF(F473=\"\",E473,F473)+G473+H473","v":0}]
[null,null,null,null,null,null,null,null,{"$f":"IF(F474=\"\",E474,F474)+G474+H474","v":0}]
[null,null,null,null,null,null,null,null,0]
[null,null,null,null,null,null,null,null,0]
[null,null,null,null,null,null,null,null,0]
[null,null,null,null,null,null,null,null,0]
[null,null,null,null,null,null,null,null,0]
[null,null,null,null,null,null,null,null,0]
[null,null,null,null,null,null,null,null,0]
[null,null,null,null,null,null,null,null,0]
["Insérer des lignes ici si nécessaire"]
[]
[null,null,""]
["Code Fond","Budget ",null,null,"Engagé","Réceptionné","M. Forte",null,"Atterissage"]
[null,null,null,null,{"$f":"SUM(E489:E499)","v":0},{"$f":"SUM(F489:F499)","v":0},{"$f":"SUM(G489:G499)","v":0},{"$f":"SUM(H489:H499)","v":0},{"$f":"SUM(I489:I499)","v":0}]
[null,null,"N° SAP","Description","Engagé","Réceptionné","Maturité forte","Maturité faible","Atterrissage"]
[null,null,null,null,null,null,null,null,{"$f":"IF(F489=\"\",E489,F489)+G489+H489","v":0}]
[null,null,null,null,null,null,null,null,{"$f":"IF(F490=\"\",E490,F490)+G490+H490","v":0}]
[null,null,null,null,null,null,null,null,0]
[null,null,null,null,null,null,null,null,0]
[null,null,null,null,null,null,null,null,0]
[null,null,null,null,null,null,null,null,0]
[null,null,null,null,null,null,null,null,0]
[null,null,null,null,null,null,null,null,0]
[null,null,null,null,null,null,null,null,0]
[null,null,null,null,null,null,null,null,0]
["Insérer des lignes ici si nécessaire"]
[]
[null,null,""]
["Code Fond","Budget ",null,null,"Engagé","Réceptionné","M. Forte",null,"Atterissage"]
[null,null,null,null,{"$f":"SUM(E505:E515)","v":0},{"$f":"SUM(F505:F515)","v":0},{"$f":"SUM(G505:G515)","v":0},{"$f":"SUM(H505:H515)","v":0},{"$f":"SUM(I505:I515)","v":0}]
[null,null,"N° SAP","Description","Engagé","Réceptionné","Maturité forte","Maturité faible","Atterrissage"]
[null,null,null,null,null,null,null,null,{"$f":"IF(F505=\"\",E505,F505)+G505+H505","v":0}]
[null,null,null,null,null,null,null,null,{"$f":"IF(F506=\"\",E506,F506)+G506+H506","v":0}]
[null,null,null,null,null,null,null,null,0]
[null,null,null,null,null,null,null,null,0]
[null,null,null,null,null,null,null,null,0]
[null,null,null,null,null,null,null,null,0]
[null,null,null,null,null,null,null,null,0]
[null,null,null,null,null,null,null,null,0]
[null,null,null,null,null,null,null,null,0]
[null,null,null,null,null,null,null,null,0]
["Insérer des lignes ici si nécessaire"]

{"sheet":"DIR2","index":2,"n_rows":515,"n_cols":18,"rows_kept":515,"cut":false,"hidden":false,"merged":[[487,0,497,0],[498,0,498,8],[500,2,500,8],[503,0,513,0],[514,0,514,8],[484,2,484,8],[423,0,433,0],[434,0,434,8],[436,2,436,8],[439,0,449,0],[450,0,450,8],[452,2,452,8],[455,0,465,0],[466,0,466,8],[468,2,468,8],[471,0,481,0],[482,0,482,8],[420,2,420,8],[359,0,369,0],[370,0,370,8],[372,2,372,8],[375,0,385,0],[386,0,386,8],[388,2,388,8],[391,0,401,0],[402,0,402,8],[404,2,404,8],[407,0,417,0],[418,0,418,8],[356,2,356,8],[295,0,305,0],[306,0,306,8],[308,2,308,8],[311,0,321,0],[322,0,322,8],[324,2,324,8],[327,0,337,0],[338,0,338,8],[340,2,340,8],[343,0,353,0],[354,0,354,8],[292,2,292,8],[231,0,241,0],[242,0,242,8],[244,2,244,8],[247,0,257,0],[258,0,258,8],[260,2,260,8],[263,0,273,0],[274,0,274,8],[276,2,276,8],[279,0,289,0],[290,0,290,8],[228,2,228,8],[167,0,177,0],[178,0,178,8],[180,2,180,8],[183,0,193,0],[194,0,194,8],[196,2,196,8],[199,0,209,0],[210,0,210,8],[212,2,212,8],[215,0,225,0],[226,0,226,8],[164,2,164,8],[103,0,113,0],[114,0,114,8],[116,2,116,8],[119,0,129,0],[130,0,130,8],[132,2,132,8],[135,0,145,0],[146,0,146,8],[148,2,148,8],[151,0,161,0],[162,0,162,8],[100,2,100,8],[39,0,49,0],[50,0,50,8],[52,2,52,8],[55,0,65,0],[66,0,66,8],[68,2,68,8],[71,0,81,0],[82,0,82,8],[84,2,84,8],[87,0,97,0],[98,0,98,8],[2,11,2,17],[5,0,15,0],[7,10,36,10],[17,0,17,8],[21,0,31,0],[33,0,33,8],[36,2,36,8]]}
["CF"]
[null,"Suivi budget direction 2"]
[null,null,null,null,null,null,null,null,null,null,null,"SYNTHESE DU DEPARTEMENT"]
["Code Fond","Budget ",null,"CUMUL","Engagé","Réceptionné","M. Forte",null,"Atterissage",null,"Type","Code fond","Budget","Engagé","Réceptionné","M. Forte","M. Faible","Atterissage"]
["RE00001",null,null,null,{"$f":"SUM(E7:E18)","v":55},{"$f":"SUM(F7:F18)","v":16},{"$f":"SUM(G7:G18)","v":120},{"$f":"SUM(H7:H18)","v":32},{"$f":"SUM(I7:I18)","v":223},null,"MIB",{"$f":"A5","v":"RE00001"},{"$f":"B5","v":0},{"$f":"E5","v":55},{"$f":"F5","v":16},120,32,223]
["MIB",null,"N° SAP","Description","Engagé","Réceptionné","Maturité forte","Maturité faible","Atterrissage",null,"MEVO",{"$f":"A21","v":"ME00700"},{"$f":"B21","v":0},{"$f":"E21","v":50},{"$f":"F21","v":15},65,0,80]
[null,null,4400785440,"Commande T1",55,null,null,null,{"$f":"IF(F7=\"\",E7,F7)+G7+H7","v":55}]
[null,null,null,"Commande T2",null,16,40,null,{"$f":"IF(F8=\"\",E8,F8)+G8+H8","v":56},null,"PROJETS",{"$f":"A39","v":"PIT0054"},{"$f":"B39","v":0},{"$f":"E39","v":45},{"$f":"F39","v":25},27,14,111]
[null,null,null,"Commande T3",null,null,40,16,{"$f":"IF(F9=\"\",E9,F9)+G9+H9","v":56},null,null,{"$f":"A55","v":0},{"$f":"B55","v":0},{"$f":"E55","v":0},{"$f":"F55","v":0},0,0,0]
[null,null,null,"Commande T4",null,null,40,16,56,null,null,{"$f":"A71","v":0},{"$f":"B71","v":0},{"$f":"E71","v":0},{"$f":"F71","v":0},0,0,0]
[null,null,null,0,null,null,null,null,0,null,null,{"$f":"A87","v":0},{"$f":"B87","v":0},{"$f":"E87","v":0},{"$f":"F87","v":0},0,0,0]
[null,null,null,0,null,null,null,null,0,null,null,{"$f":"A103","v":0},{"$f":"B103","v":0},{"$f":"E103","v":0},{"$f":"F103","v":0},0,0,0]
[null,null,null,0,null,null,null,null,0,null,null,{"$f":"A119","v":0},{"$f":"B119","v":0},{"$f":"E119","v":0},{"$f":"F119","v":0},0,0,0]
[null,null,null,0,null,null,null,null,0,null,null,{"$f":"A135","v":0},{"$f":"B135","v":0},{"$f":"E135","v":0},{"$f":"F135","v":0},0,0,0]
[null,null,null,0,null,null,null,null,0,null,null,{"$f":"A151","v":0},{"$f":"B151","v":0},{"$f":"E151","v":0},{"$f":"F151","v":0},0,0,0]
[null,null,null,0,null,null,null,null,0,null,null,{"$f":"A167","v":0},{"$f":"B167","v":0},{"$f":"E167","v":0},{"$f":"F167","v":0},0,0,0]
[null,null,null,0,null,null,null,null,0,null,null,{"$f":"A183","v":0},{"$f":"B183","v":0},{"$f":"E183","v":0},{"$f":"F183","v":0},0,0,0]
["Insérer des cellules ici si nécessaire",null,null,null,null,null,null,null,null,null,null,{"$f":"A199","v":0},{"$f":"B199","v":0},{"$f":"E199","v":0},{"$f":"F199","v":0},0,0,0]
[null,null,null,null,null,null,null,null,null,null,null,{"$f":"A215","v":0},{"$f":"B215","v":0},{"$f":"E215","v":0},{"$f":"F215","v":0},0,0,0]
["Code Fond","Budget ",null,null,"Engagé","Réceptionné","M. Forte",null,"Atterissage",null,null,{"$f":"A231","v":0},{"$f":"B231","v":0},{"$f":"E231","v":0},{"$f":"F231","v":0},0,0,0]
["ME00700",null,null,null,{"$f":"SUM(E23:E34)","v":50},{"$f":"SUM(F23:F34)","v":15},{"$f":"SUM(G23:G34)","v":65},{"$f":"SUM(H23:H34)","v":0},{"$f":"SUM(I23:I34)","v":80},null,null,{"$f":"A247","v":0},{"$f":"B247","v":0},{"$f":"E247","v":0},{"$f":"F247","v":0},0,0,0]
["MEV",null,"N° SAP","Description","Engagé","Réceptionné","Maturité forte","Maturité faible","Atterrissage",null,null,{"$f":"A263","v":0},{"$f":"B263","v":0},{"$f":"E263","v":0},{"$f":"F263","v":0},0,0,0]
[null,null,4400765263,"Maintenance évolutive 1",50,15,null,null,{"$f":"IF(F23=\"\",E23,F23)+G23+H23","v":15},null,null,{"$f":"A279","v":0},{"$f":"B279","v":0},{"$f":"C279","v":0},0,0,0,0]
[null,null,null,"Maintenance évolutive 2",null,null,15,null,{"$f":"IF(F24=\"\",E24,F24)+G24+H24","v":15},null,null,{"$f":"A295","v":0},{"$f":"B295","v":0},{"$f":"E295","v":0},{"$f":"F295","v":0},0,0,0]
[null,null,null,"Maintenance évolutive 3",null,null,20,null,{"$f":"IF(F25=\"\",E25,F25)+G25+H25","v":20},null,null,{"$f":"A311","v":0},{"$f":"B311","v":0},{"$f":"E311","v":0},{"$f":"F311","v":0},0,0,0]
[null,null,null,"Maintenance évolutive 4",null,null,30,null,30,null,null,{"$f":"A327","v":0},{"$f":"B327","v":0},{"$f":"E327","v":0},{"$f":"F327","v":0},0,0,0]
[null,null,null,0,null,null,null,null,0,null,null,{"$f":"A343","v":0},{"$f":"B343","v":0},{"$f":"E343","v":0},{"$f":"F343","v":0},0,0,0]
[null,null,null,0,null,null,null,null,0,null,null,{"$f":"A359","v":0},{"$f":"B359","v":0},{"$f":"E359","v":0},{"$f":"F359","v":0},0,0,0]
[null,null,null,0,null,null,null,null,0,null,null,{"$f":"A375","v":0},{"$f":"B375","v":0},{"$f":"E375","v":0},{"$f":"F375","v":0},0,0,0]
[null,null,null,0,null,null,null,null,0,null,null,{"$f":"A391","v":0},{"$f":"B391","v":0},{"$f":"E391","v":0},{"$f":"F391","v":0},0,0,0]
[null,null,null,0,null,null,null,null,0,null,null,{"$f":"A407","v":0},{"$f":"B407","v":0},{"$f":"E407","v":0},{"$f":"F407","v":0},0,0,0]
[null,null,null,0,null,null,null,null,0,null,null,{"$f":"A423","v":0},{"$f":"B423","v":0},{"$f":"E423","v":0},{"$f":"F423","v":0},0,0,0]
[null,null,null,0,null,null,null,null,null,null,null,{"$f":"A439","v":0},{"$f":"B439","v":0},{"$f":"E439","v":0},{"$f":"F439","v":0},0,0,0]
["Insérer des cellules ici si nécessaire",null,null,null,null,null,null,null,null,null,null,{"$f":"A455","v":0},{"$f":"B455","v":0},{"$f":"E455","v":0},{"$f":"F455","v":0},0,0,0]
[null,null,null,null,null,null,null,null,null,null,null,{"$f":"A471","v":0},{"$f":"B471","v":0},{"$f":"E471","v":0},{"$f":"F471","v":0},0,0,0]
[null,null,null,null,null,null,null,null,null,null,null,{"$f":"A487","v":0},{"$f":"B487","v":0},{"$f":"E487","v":0},{"$f":"F487","v":0},0,0,0]
[null,null,"TP-004 Nouvel Environnement de Travail (Services Front)",null,null,null,null,null,null,null,null,{"$f":"A503","v":0},{"$f":"B503","v":0},{"$f":"E503","v":0},{"$f":"F503","v":0},0,0,0]
["Code Fond","Budget ",null,null,"Engagé","Réceptionné","M. Forte",null,"Atterissage"]
["PIT0054",null,null,null,{"$f":"SUM(E41:E51)","v":45},{"$f":"SUM(F41:F51)","v":25},{"$f":"SUM(G41:G51)","v":27},{"$f":"SUM(H41:H51)","v":14},{"$f":"SUM(I41:I51)","v":111}]
[null,null,"N° SAP","Description","Engagé","Réceptionné","Maturité forte","Maturité faible","Atterrissage"]
[null,null,4400596354,"Projet NET T1",45,null,null,null,{"$f":"IF(F41=\"\",E41,F41)+G41+H41","v":45}]
[null,null,null,"Projet NET T2",null,25,null,null,{"$f":"IF(F42=\"\",E42,F42)+G42+H42","v":25}]
[null,null,null,"Projet NET T3",null,null,12,null,12]
[null,null,null,"Projet NET T4",null,null,15,14,29]
[null,null,null,0,null,null,null,null,0]
[null,null,null,0,null,null,null,null,0]
[null,null,null,0,null,null,null,null,0]
[null,null,null,0,null,null,null,null,0]
[null,null,null,0,null,null,null,null,0]
[null,null,null,0,null,null,null,null,0]
["Insérer des lignes ici si nécessaire"]
[]
[null,null,""]
["PIT0052","Budget ",null,null,"Engagé","Réceptionné","M. Forte",null,"Atterissage"]
[null,null,null,null,{"$f":"SUM(E57:E67)","v":0},{"$f":"SUM(F57:F67)","v":0},{"$f":"SUM(G57:G67)","v":0},{"$f":"SUM(H57:H67)","v":0},{"$f":"SUM(I57:I67)","v":0}]
[null,null,"N° SAP","Description","Engagé","Réceptionné","Maturité forte","Maturité faible","Atterrissage"]
[null,null,null,null,null,null,null,null,{"$f":"IF(F57=\"\",E57,F57)+G57+H57","v":0}]
[null,null,null,null,null,null,null,null,{"$f":"IF(F58=\"\",E58,F58)+G58+H58","v":0}]
[null,null,null,null,null,null,null,null,0]
[null,null,null,null,null,null,null,null,0]
[null,null,null,null,null,null,null,null,0]
[null,null,null,null,null,null,null,null,0]
[null,null,null,null,null,null,null,null,0]
[null,null,null,null,null,null,null,null,0]
[null,null,null,null,null,null,null,null,0]
[null,null,null,null,null,null,null,null,0]
["Insérer des lignes ici si nécessaire"]
[]
[null,null,""]
["PI00008","Budget ",null,null,"Engagé","Réceptionné","M. Forte",null,"Atterissage"]
[null,null,null,null,{"$f":"SUM(E73:E83)","v":0},{"$f":"SUM(F73:F83)","v":0},{"$f":"SUM(G73:G83)","v":0},{"$f":"SUM(H73:H83)","v":0},{"$f":"SUM(I73:I83)","v":0}]
[null,null,"N° SAP","Description","Engagé","Réceptionné","Maturité forte","Maturité faible","Atterrissage"]
[null,null,null,null,null,null,null,null,{"$f":"IF(F73=\"\",E73,F73)+G73+H73","v":0}]
[null,null,null,null,null,null,null,null,{"$f":"IF(F74=\"\",E74,F74)+G74+H74","v":0}]
[null,null,null,null,null,null,null,null,0]
[null,null,null,null,null,null,null,null,0]
[null,null,null,null,null,null,null,null,0]
[null,null,null,null,null,null,null,null,0]
[null,null,null,null,null,null,null,null,0]
[null,null,null,null,null,null,null,null,0]
[null,null,null,null,null,null,null,null,0]
[null,null,null,null,null,null,null,null,0]
["Insérer des lignes ici si nécessaire"]
[]
[null,null,""]
["PIT0043","Budget ",null,null,"Engagé","Réceptionné","M. Forte",null,"Atterissage"]
[null,null,null,null,{"$f":"SUM(E89:E99)","v":0},{"$f":"SUM(F89:F99)","v":0},{"$f":"SUM(G89:G99)","v":0},{"$f":"SUM(H89:H99)","v":0},{"$f":"SUM(I89:I99)","v":0}]
[null,null,"N° SAP","Description","Engagé","Réceptionné","Maturité forte","Maturité faible","Atterrissage"]
[null,null,null,null,null,null,null,null,{"$f":"IF(F89=\"\",E89,F89)+G89+H89","v":0}]
[null,null,null,null,null,null,null,null,{"$f":"IF(F90=\"\",E90,F90)+G90+H90","v":0}]
[null,null,null,null,null,null,null,null,0]
[null,null,null,null,null,null,null,null,0]
[null,null,null,null,null,null,null,null,0]
[null,null,null,null,null,null,null,null,0]
[null,null,null,null,null,null,null,null,0]
[null,null,null,null,null,null,null,null,0]
[null,null,null,null,null,null,null,null,0]
[null,null,null,null,null,null,null,null,0]
["Insérer des lignes ici si nécessaire"]
[]
[null,null,""]
["Code Fond","Budget ",null,null,"Engagé","Réceptionné","M. Forte",null,"Atterissage"]
[null,null,null,null,{"$f":"SUM(E105:E115)","v":0},{"$f":"SUM(F105:F115)","v":0},{"$f":"SUM(G105:G115)","v":0},{"$f":"SUM(H105:H115)","v":0},{"$f":"SUM(I105:I115)","v":0}]
[null,null,"N° SAP","Description","Engagé","Réceptionné","Maturité forte","Maturité faible","Atterrissage"]
[null,null,null,null,null,null,null,null,{"$f":"IF(F105=\"\",E105,F105)+G105+H105","v":0}]
[null,null,null,null,null,null,null,null,{"$f":"IF(F106=\"\",E106,F106)+G106+H106","v":0}]
[null,null,null,null,null,null,null,null,0]
[null,null,null,null,null,null,null,null,0]
[null,null,null,null,null,null,null,null,0]
[null,null,null,null,null,null,null,null,0]
[null,null,null,null,null,null,null,null,0]
[null,null,null,null,null,null,null,null,0]
[null,null,null,null,null,null,null,null,0]
[null,null,null,null,null,null,null,null,0]
["Insérer des lignes ici si nécessaire"]
[]
[null,null,""]
["Code Fond","Budget ",null,null,"Engagé","Réceptionné","M. Forte",null,"Atterissage"]
[null,null,null,null,{"$f":"SUM(E121:E131)","v":0},{"$f":"SUM(F121:F131)","v":0},{"$f":"SUM(G121:G131)","v":0},{"$f":"SUM(H121:H131)","v":0},{"$f":"SUM(I121:I131)","v":0}]
[null,null,"N° SAP","Description","Engagé","Réceptionné","Maturité forte","Maturité faible","Atterrissage"]
[null,null,null,null,null,null,null,null,{"$f":"IF(F121=\"\",E121,F121)+G121+H121","v":0}]
[null,null,null,null,null,null,null,null,{"$f":"IF(F122=\"\",E122,F122)+G122+H122","v":0}]
[null,null,null,null,null,null,null,null,0]
[null,null,null,null,null,null,null,null,0]
[null,null,null,null,null,null,null,null,0]
[null,null,null,null,null,null,null,null,0]
[null,null,null,null,null,null,null,null,0]
[null,null,null,null,null,null,null,null,0]
[null,null,null,null,null,null,null,null,0]
[null,null,null,null,null,null,null,null,0]
["Insérer des lignes ici si nécessaire"]
[]
[null,null,""]
["Code Fond","Budget ",null,null,"Engagé","Réceptionné","M. Forte",null,"Atterissage"]
[null,null,null,null,{"$f":"SUM(E137:E147)","v":0},{"$f":"SUM(F137:F147)","v":0},{"$f":"SUM(G137:G147)","v":0},{"$f":"SUM(H137:H147)","v":0},{"$f":"SUM(I137:I147)","v":0}]
[null,null,"N° SAP","Description","Engagé","Réceptionné","Maturité forte","Maturité faible","Atterrissage"]
[null,null,null,null,null,null,null,null,{"$f":"IF(F137=\"\",E137,F137)+G137+H137","v":0}]
[null,null,null,null,null,null,null,null,{"$f":"IF(F138=\"\",E138,F138)+G138+H138","v":0}]
[null,null,null,null,null,null,null,null,0]
[null,null,null,null,null,null,null,null,0]
[null,null,null,null,null,null,null,null,0]
[null,null,null,null,null,null,null,null,0]
[null,null,null,null,null,null,null,null,0]
[null,null,null,null,null,null,null,null,0]
[null,null,null,null,null,null,null,null,0]
[null,null,null,null,null,null,null,null,0]
["Insérer des lignes ici si nécessaire"]
[]
[null,null,""]
["Code Fond","Budget ",null,null,"Engagé","Réceptionné","M. Forte",null,"Atterissage"]
[null,null,null,null,{"$f":"SUM(E153:E163)","v":0},{"$f":"SUM(F153:F163)","v":0},{"$f":"SUM(G153:G163)","v":0},{"$f":"SUM(H153:H163)","v":0},{"$f":"SUM(I153:I163)","v":0}]
[null,null,"N° SAP","Description","Engagé","Réceptionné","Maturité forte","Maturité faible","Atterrissage"]
[null,null,null,null,null,null,null,null,{"$f":"IF(F153=\"\",E153,F153)+G153+H153","v":0}]
[null,null,null,null,null,null,null,null,{"$f":"IF(F154=\"\",E154,F154)+G154+H154","v":0}]
[null,null,null,null,null,null,null,null,0]
[null,null,null,null,null,null,null,null,0]
[null,null,null,null,null,null,null,null,0]
[null,null,null,null,null,null,null,null,0]
[null,null,null,null,null,null,null,null,0]
[null,null,null,null,null,null,null,null,0]
[null,null,null,null,null,null,null,null,0]
[null,null,null,null,null,null,null,null,0]
["Insérer des lignes ici si nécessaire"]
[]
[null,null,""]
["Code Fond","Budget ",null,null,"Engagé","Réceptionné","M. Forte",null,"Atterissage"]
[null,null,null,null,{"$f":"SUM(E169:E179)","v":0},{"$f":"SUM(F169:F179)","v":0},{"$f":"SUM(G169:G179)","v":0},{"$f":"SUM(H169:H179)","v":0},{"$f":"SUM(I169:I179)","v":0}]
[null,null,"N° SAP","Description","Engagé","Réceptionné","Maturité forte","Maturité faible","Atterrissage"]
[null,null,null,null,null,null,null,null,{"$f":"IF(F169=\"\",E169,F169)+G169+H169","v":0}]
[null,null,null,null,null,null,null,null,{"$f":"IF(F170=\"\",E170,F170)+G170+H170","v":0}]
[null,null,null,null,null,null,null,null,0]
[null,null,null,null,null,null,null,null,0]
[null,null,null,null,null,null,null,null,0]
[null,null,null,null,null,null,null,null,0]
[null,null,null,null,null,null,null,null,0]
[null,null,null,null,null,null,null,null,0]
[null,null,null,null,null,null,null,null,0]
[null,null,null,null,null,null,null,null,0]
["Insérer des lignes ici si nécessaire"]
[]
[null,null,""]
["Code Fond","Budget ",null,null,"Engagé","Réceptionné","M. Forte",null,"Atterissage"]
[null,null,null,null,{"$f":"SUM(E185:E195)","v":0},{"$f":"SUM(F185:F195)","v":0},{"$f":"SUM(G185:G195)","v":0},{"$f":"SUM(H185:H195)","v":0},{"$f":"SUM(I185:I195)","v":0}]
[null,null,"N° SAP","Description","Engagé","Réceptionné","Maturité forte","Maturité faible","Atterrissage"]
[null,null,null,null,null,null,null,null,{"$f":"IF(F185=\"\",E185,F185)+G185+H185","v":0}]
[null,null,null,null,null,null,null,null,{"$f":"IF(F186=\"\",E186,F186)+G186+H186","v":0}]
[null,null,null,null,null,null,null,null,0]
[null,null,null,null,null,null,null,null,0]
[null,null,null,null,null,null,null,null,0]
[null,null,null,null,null,null,null,null,0]
[null,null,null,null,null,null,null,null,0]
[null,null,null,null,null,null,null,null,0]
[null,null,null,null,null,null,null,null,0]
[null,null,null,null,null,null,null,null,0]
["Insérer des lignes ici si nécessaire"]
[]
[null,null,""]
["Code Fond","Budget ",null,null,"Engagé","Réceptionné","M. Forte",null,"Atterissage"]
[null,null,null,null,{"$f":"SUM(E201:E211)","v":0},{"$f":"SUM(F201:F211)","v":0},{"$f":"SUM(G201:G211)","v":0},{"$f":"SUM(H201:H211)","v":0},{"$f":"SUM(I201:I211)","v":0}]
[null,null,"N° SAP","Description","Engagé","Réceptionné","Maturité forte","Maturité faible","Atterrissage"]
[null,null,null,null,null,null,null,null,{"$f":"IF(F201=\"\",E201,F201)+G201+H201","v":0}]
[null,null,null,null,null,null,null,null,{"$f":"IF(F202=\"\",E202,F202)+G202+H202","v":0}]
[null,null,null,null,null,null,null,null,0]
[null,null,null,null,null,null,null,null,0]
[null,null,null,null,null,null,null,null,0]
[null,null,null,null,null,null,null,null,0]
[null,null,null,null,null,null,null,null,0]
[null,null,null,null,null,null,null,null,0]
[null,null,null,null,null,null,null,null,0]
[null,null,null,null,null,null,null,null,0]
["Insérer des lignes ici si nécessaire"]
[]
[null,null,""]
["Code Fond","Budget ",null,null,"Engagé","Réceptionné","M. Forte",null,"Atterissage"]
[null,null,null,null,{"$f":"SUM(E217:E227)","v":0},{"$f":"SUM(F217:F227)","v":0},{"$f":"SUM(G217:G227)","v":0},{"$f":"SUM(H217:H227)","v":0},{"$f":"SUM(I217:I227)","v":0}]
[null,null,"N° SAP","Description","Engagé","Réceptionné","Maturité forte","Maturité faible","Atterrissage"]
[null,null,null,null,null,null,null,null,{"$f":"IF(F217=\"\",E217,F217)+G217+H217","v":0}]
[null,null,null,null,null,null,null,null,{"$f":"IF(F218=\"\",E218,F218)+G218+H218","v":0}]
[null,null,null,null,null,null,null,null,0]
[null,null,null,null,null,null,null,null,0]
[null,null,null,null,null,null,null,null,0]
[null,null,null,null,null,null,null,null,0]
[null,null,null,null,null,null,null,null,0]
[null,null,null,null,null,null,null,null,0]
[null,null,null,null,null,null,null,null,0]
[null,null,null,null,null,null,null,null,0]
["Insérer des lignes ici si nécessaire"]
[]
[null,null,""]
["Code Fond","Budget ",null,null,"Engagé","Réceptionné","M. Forte",null,"Atterissage"]
[null,null,null,null,{"$f":"SUM(E233:E243)","v":0},{"$f":"SUM(F233:F243)","v":0},{"$f":"SUM(G233:G243)","v":0},{"$f":"SUM(H233:H243)","v":0},{"$f":"SUM(I233:I243)","v":0}]
[null,null,"N° SAP","Description","Engagé","Réceptionné","Maturité forte","Maturité faible","Atterrissage"]
[null,null,null,null,null,null,null,null,{"$f":"IF(F233=\"\",E233,F233)+G233+H233","v":0}]
[null,null,null,null,null,null,null,null,{"$f":"IF(F234=\"\",E234,F234)+G234+H234","v":0}]
[null,null,null,null,null,null,null,null,0]
[null,null,null,null,null,null,null,null,0]
[null,null,null,null,null,null,null,null,0]
[null,null,null,null,null,null,null,null,0]
[null,null,null,null,null,null,null,null,0]
[null,null,null,null,null,null,null,null,0]
[null,null,null,null,null,null,null,null,0]
[null,null,null,null,null,null,null,null,0]
["Insérer des lignes ici si nécessaire"]
[]
[null,null,""]
["Code Fond","Budget ",null,null,"Engagé","Réceptionné","M. Forte",null,"Atterissage"]
[null,null,null,null,{"$f":"SUM(E249:E259)","v":0},{"$f":"SUM(F249:F259)","v":0},{"$f":"SUM(G249:G259)","v":0},{"$f":"SUM(H249:H259)","v":0},{"$f":"SUM(I249:I259)","v":0}]
[null,null,"N° SAP","Description","Engagé","Réceptionné","Maturité forte","Maturité faible","Atterrissage"]
[null,null,null,null,null,null,null,null,{"$f":"IF(F249=\"\",E249,F249)+G249+H249","v":0}]
[null,null,null,null,null,null,null,null,{"$f":"IF(F250=\"\",E250,F250)+G250+H250","v":0}]
[null,null,null,null,null,null,null,null,0]
[null,null,null,null,null,null,null,null,0]
[null,null,null,null,null,null,null,null,0]
[null,null,null,null,null,null,null,null,0]
[null,null,null,null,null,null,null,null,0]
[null,null,null,null,null,null,null,null,0]
[null,null,null,null,null,null,null,null,0]
[null,null,null,null,null,null,null,null,0]
["Insérer des lignes ici si nécessaire"]
[]
[null,null,""]
["Code Fond","Budget ",null,null,"Engagé","Réceptionné","M. Forte",null,"Atterissage"]
[null,null,null,null,{"$f":"SUM(E265:E275)","v":0},{"$f":"SUM(F265:F275)","v":0},{"$f":"SUM(G265:G275)","v":0},{"$f":"SUM(H265:H275)","v":0},{"$f":"SUM(I265:I275)","v":0}]
[null,null,"N° SAP","Description","Engagé","Réceptionné","Maturité forte","Maturité faible","Atterrissage"]
[null,null,null,null,null,null,null,null,{"$f":"IF(F265=\"\",E265,F265)+G265+H265","v":0}]
[null,null,null,null,null,null,null,null,{"$f":"IF(F266=\"\",E266,F266)+G266+H266","v":0}]
[null,null,null,null,null,null,null,null,0]
[null,null,null,null,null,null,null,null,0]
[null,null,null,null,null,null,null,null,0]
[null,null,null,null,null,null,null,null,0]
[null,null,null,null,null,null,null,null,0]
[null,null,null,null,null,null,null,null,0]
[null,null,null,null,null,null,null,null,0]
[null,null,null,null,null,null,null,null,0]
["Insérer des lignes ici si nécessaire"]
[]
[null,null,""]
["Code Fond","Budget ",null,null,"Engagé","Réceptionné","M. Forte",null,"Atterissage"]
[null,null,null,null,{"$f":"SUM(E281:E291)","v":0},{"$f":"SUM(F281:F291)","v":0},{"$f":"SUM(G281:G291)","v":0},{"$f":"SUM(H281:H291)","v":0},{"$f":"SUM(I281:I291)","v":0}]
[null,null,"N° SAP","Description","Engagé","Réceptionné","Maturité forte","Maturité faible","Atterrissage"]
[null,null,null,null,null,null,null,null,{"$f":"IF(F281=\"\",E281,F281)+G281+H281","v":0}]
[null,null,null,null,null,null,null,null,{"$f":"IF(F282=\"\",E282,F282)+G282+H282","v":0}]
[null,null,null,null,null,null,null,null,0]
[null,null,null,null,null,null,null,null,0]
[null,null,null,null,null,null,null,null,0]
[null,null,null,null,null,null,null,null,0]
[null,null,null,null,null,null,null,null,0]
[null,null,null,null,null,null,null,null,0]
[null,null,null,null,null,null,null,null,0]
[null,null,null,null,null,null,null,null,0]
["Insérer des lignes ici si nécessaire"]
[]
[null,null,""]
["Code Fond","Budget ",null,null,"Engagé","Réceptionné","M. Forte",null,"Atterissage"]
[null,null,null,null,{"$f":"SUM(E297:E307)","v":0},{"$f":"SUM(F297:F307)","v":0},{"$f":"SUM(G297:G307)","v":0},{"$f":"SUM(H297:H307)","v":0},{"$f":"SUM(I297:I307)","v":0}]
[null,null,"N° SAP","Description","Engagé","Réceptionné","Maturité forte","Maturité faible","Atterrissage"]
[null,null,null,null,null,null,null,null,{"$f":"IF(F297=\"\",E297,F297)+G297+H297","v":0}]
[null,null,null,null,null,null,null,null,{"$f":"IF(F298=\"\",E298,F298)+G298+H298","v":0}]
[null,null,null,null,null,null,null,null,0]
[null,null,null,null,null,null,null,null,0]
[null,null,null,null,null,null,null,null,0]
[null,null,null,null,null,null,null,null,0]
[null,null,null,null,null,null,null,null,0]
[null,null,null,null,null,null,null,null,0]
[null,null,null,null,null,null,null,null,0]
[null,null,null,null,null,null,null,null,0]
["Insérer des lignes ici si nécessaire"]
[]
[null,null,""]
["Code Fond","Budget ",null,null,"Engagé","Réceptionné","M. Forte",null,"Atterissage"]
[null,null,null,null,{"$f":"SUM(E313:E323)","v":0},{"$f":"SUM(F313:F323)","v":0},{"$f":"SUM(G313:G323)","v":0},{"$f":"SUM(H313:H323)","v":0},{"$f":"SUM(I313:I323)","v":0}]
[null,null,"N° SAP","Description","Engagé","Réceptionné","Maturité forte","Maturité faible","Atterrissage"]
[null,null,null,null,null,null,null,null,{"$f":"IF(F313=\"\",E313,F313)+G313+H313","v":0}]
[null,null,null,null,null,null,null,null,{"$f":"IF(F314=\"\",E314,F314)+G314+H314","v":0}]
[null,null,null,null,null,null,null,null,0]
[null,null,null,null,null,null,null,null,0]
[null,null,null,null,null,null,null,null,0]
[null,null,null,null,null,null,null,null,0]
[null,null,null,null,null,null,null,null,0]
[null,null,null,null,null,null,null,null,0]
[null,null,null,null,null,null,null,null,0]
[null,null,null,null,null,null,null,null,0]
["Insérer des lignes ici si nécessaire"]
[]
[null,null,""]
["Code Fond","Budget ",null,null,"Engagé","Réceptionné","M. Forte",null,"Atterissage"]
[null,null,null,null,{"$f":"SUM(E329:E339)","v":0},{"$f":"SUM(F329:F339)","v":0},{"$f":"SUM(G329:G339)","v":0},{"$f":"SUM(H329:H339)","v":0},{"$f":"SUM(I329:I339)","v":0}]
[null,null,"N° SAP","Description","Engagé","Réceptionné","Maturité forte","Maturité faible","Atterrissage"]
[null,null,null,null,null,null,null,null,{"$f":"IF(F329=\"\",E329,F329)+G329+H329","v":0}]
[null,null,null,null,null,null,null,null,{"$f":"IF(F330=\"\",E330,F330)+G330+H330","v":0}]
[null,null,null,null,null,null,null,null,0]
[null,null,null,null,null,null,null,null,0]
[null,null,null,null,null,null,null,null,0]
[null,null,null,null,null,null,null,null,0]
[null,null,null,null,null,null,null,null,0]
[null,null,null,null,null,null,null,null,0]
[null,null,null,null,null,null,null,null,0]
[null,null,null,null,null,null,null,null,0]
["Insérer des lignes ici si nécessaire"]
[]
[null,null,""]
["Code Fond","Budget ",null,null,"Engagé","Réceptionné","M. Forte",null,"Atterissage"]
[null,null,null,null,{"$f":"SUM(E345:E355)","v":0},{"$f":"SUM(F345:F355)","v":0},{"$f":"SUM(G345:G355)","v":0},{"$f":"SUM(H345:H355)","v":0},{"$f":"SUM(I345:I355)","v":0}]
[null,null,"N° SAP","Description","Engagé","Réceptionné","Maturité forte","Maturité faible","Atterrissage"]
[null,null,null,null,null,null,null,null,{"$f":"IF(F345=\"\",E345,F345)+G345+H345","v":0}]
[null,null,null,null,null,null,null,null,{"$f":"IF(F346=\"\",E346,F346)+G346+H346","v":0}]
[null,null,null,null,null,null,null,null,0]
[null,null,null,null,null,null,null,null,0]
[null,null,null,null,null,null,null,null,0]
[null,null,null,null,null,null,null,null,0]
[null,null,null,null,null,null,null,null,0]
[null,null,null,null,null,null,null,null,0]
[null,null,null,null,null,null,null,null,0]
[null,null,null,null,null,null,null,null,0]
["Insérer des lignes ici si nécessaire"]
[]
[null,null,""]
["Code Fond","Budget ",null,null,"Engagé","Réceptionné","M. Forte",null,"Atterissage"]
[null,null,null,null,{"$f":"SUM(E361:E371)","v":0},{"$f":"SUM(F361:F371)","v":0},{"$f":"SUM(G361:G371)","v":0},{"$f":"SUM(H361:H371)","v":0},{"$f":"SUM(I361:I371)","v":0}]
[null,null,"N° SAP","Description","Engagé","Réceptionné","Maturité forte","Maturité faible","Atterrissage"]
[null,null,null,null,null,null,null,null,{"$f":"IF(F361=\"\",E361,F361)+G361+H361","v":0}]
[null,null,null,null,null,null,null,null,{"$f":"IF(F362=\"\",E362,F362)+G362+H362","v":0}]
[null,null,null,null,null,null,null,null,0]
[null,null,null,null,null,null,null,null,0]
[null,null,null,null,null,null,null,null,0]
[null,null,null,null,null,null,null,null,0]
[null,null,null,null,null,null,null,null,0]
[null,null,null,null,null,null,null,null,0]
[null,null,null,null,null,null,null,null,0]
[null,null,null,null,null,null,null,null,0]
["Insérer des lignes ici si nécessaire"]
[]
[null,null,""]
["Code Fond","Budget ",null,null,"Engagé","Réceptionné","M. Forte",null,"Atterissage"]
[null,null,null,null,{"$f":"SUM(E377:E387)","v":0},{"$f":"SUM(F377:F387)","v":0},{"$f":"SUM(G377:G387)","v":0},{"$f":"SUM(H377:H387)","v":0},{"$f":"SUM(I377:I387)","v":0}]
[null,null,"N° SAP","Description","Engagé","Réceptionné","Maturité forte","Maturité faible","Atterrissage"]
[null,null,null,null,null,null,null,null,{"$f":"IF(F377=\"\",E377,F377)+G377+H377","v":0}]
[null,null,null,null,null,null,null,null,{"$f":"IF(F378=\"\",E378,F378)+G378+H378","v":0}]
[null,null,null,null,null,null,null,null,0]
[null,null,null,null,null,null,null,null,0]
[null,null,null,null,null,null,null,null,0]
[null,null,null,null,null,null,null,null,0]
[null,null,null,null,null,null,null,null,0]
[null,null,null,null,null,null,null,null,0]
[null,null,null,null,null,null,null,null,0]
[null,null,null,null,null,null,null,null,0]
["Insérer des lignes ici si nécessaire"]
[]
[null,null,""]
["Code Fond","Budget ",null,null,"Engagé","Réceptionné","M. Forte",null,"Atterissage"]
[null,null,null,null,{"$f":"SUM(E393:E403)","v":0},{"$f":"SUM(F393:F403)","v":0},{"$f":"SUM(G393:G403)","v":0},{"$f":"SUM(H393:H403)","v":0},{"$f":"SUM(I393:I403)","v":0}]
[null,null,"N° SAP","Description","Engagé","Réceptionné","Maturité forte","Maturité faible","Atterrissage"]
[null,null,null,null,null,null,null,null,{"$f":"IF(F393=\"\",E393,F393)+G393+H393","v":0}]
[null,null,null,null,null,null,null,null,{"$f":"IF(F394=\"\",E394,F394)+G394+H394","v":0}]
[null,null,null,null,null,null,null,null,0]
[null,null,null,null,null,null,null,null,0]
[null,null,null,null,null,null,null,null,0]
[null,null,null,null,null,null,null,null,0]
[null,null,null,null,null,null,null,null,0]
[null,null,null,null,null,null,null,null,0]
[null,null,null,null,null,null,null,null,0]
[null,null,null,null,null,null,null,null,0]
["Insérer des lignes ici si nécessaire"]
[]
[null,null,""]
["Code Fond","Budget ",null,null,"Engagé","Réceptionné","M. Forte",null,"Atterissage"]
[null,null,null,null,{"$f":"SUM(E409:E419)","v":0},{"$f":"SUM(F409:F419)","v":0},{"$f":"SUM(G409:G419)","v":0},{"$f":"SUM(H409:H419)","v":0},{"$f":"SUM(I409:I419)","v":0}]
[null,null,"N° SAP","Description","Engagé","Réceptionné","Maturité forte","Maturité faible","Atterrissage"]
[null,null,null,null,null,null,null,null,{"$f":"IF(F409=\"\",E409,F409)+G409+H409","v":0}]
[null,null,null,null,null,null,null,null,{"$f":"IF(F410=\"\",E410,F410)+G410+H410","v":0}]
[null,null,null,null,null,null,null,null,0]
[null,null,null,null,null,null,null,null,0]
[null,null,null,null,null,null,null,null,0]
[null,null,null,null,null,null,null,null,0]
[null,null,null,null,null,null,null,null,0]
[null,null,null,null,null,null,null,null,0]
[null,null,null,null,null,null,null,null,0]
[null,null,null,null,null,null,null,null,0]
["Insérer des lignes ici si nécessaire"]
[]
[null,null,""]
["Code Fond","Budget ",null,null,"Engagé","Réceptionné","M. Forte",null,"Atterissage"]
[null,null,null,null,{"$f":"SUM(E425:E435)","v":0},{"$f":"SUM(F425:F435)","v":0},{"$f":"SUM(G425:G435)","v":0},{"$f":"SUM(H425:H435)","v":0},{"$f":"SUM(I425:I435)","v":0}]
[null,null,"N° SAP","Description","Engagé","Réceptionné","Maturité forte","Maturité faible","Atterrissage"]
[null,null,null,null,null,null,null,null,{"$f":"IF(F425=\"\",E425,F425)+G425+H425","v":0}]
[null,null,null,null,null,null,null,null,{"$f":"IF(F426=\"\",E426,F426)+G426+H426","v":0}]
[null,null,null,null,null,null,null,null,0]
[null,null,null,null,null,null,null,null,0]
[null,null,null,null,null,null,null,null,0]
[null,null,null,null,null,null,null,null,0]
[null,null,null,null,null,null,null,null,0]
[null,null,null,null,null,null,null,null,0]
[null,null,null,null,null,null,null,null,0]
[null,null,null,null,null,null,null,null,0]
["Insérer des lignes ici si nécessaire"]
[]
[null,null,""]
["Code Fond","Budget ",null,null,"Engagé","Réceptionné","M. Forte",null,"Atterissage"]
[null,null,null,null,{"$f":"SUM(E441:E451)","v":0},{"$f":"SUM(F441:F451)","v":0},{"$f":"SUM(G441:G451)","v":0},{"$f":"SUM(H441:H451)","v":0},{"$f":"SUM(I441:I451)","v":0}]
[null,null,"N° SAP","Description","Engagé","Réceptionné","Maturité forte","Maturité faible","Atterrissage"]
[null,null,null,null,null,null,null,null,{"$f":"IF(F441=\"\",E441,F441)+G441+H441","v":0}]
[null,null,null,null,null,null,null,null,{"$f":"IF(F442=\"\",E442,F442)+G442+H442","v":0}]
[null,null,null,null,null,null,null,null,0]
[null,null,null,null,null,null,null,null,0]
[null,null,null,null,null,null,null,null,0]
[null,null,null,null,null,null,null,null,0]
[null,null,null,null,null,null,null,null,0]
[null,null,null,null,null,null,null,null,0]
[null,null,null,null,null,null,null,null,0]
[null,null,null,null,null,null,null,null,0]
["Insérer des lignes ici si nécessaire"]
[]
[null,null,""]
["Code Fond","Budget ",null,null,"Engagé","Réceptionné","M. Forte",null,"Atterissage"]
[null,null,null,null,{"$f":"SUM(E457:E467)","v":0},{"$f":"SUM(F457:F467)","v":0},{"$f":"SUM(G457:G467)","v":0},{"$f":"SUM(H457:H467)","v":0},{"$f":"SUM(I457:I467)","v":0}]
[null,null,"N° SAP","Description","Engagé","Réceptionné","Maturité forte","Maturité faible","Atterrissage"]
[null,null,null,null,null,null,null,null,{"$f":"IF(F457=\"\",E457,F457)+G457+H457","v":0}]
[null,null,null,null,null,null,null,null,{"$f":"IF(F458=\"\",E458,F458)+G458+H458","v":0}]
[null,null,null,null,null,null,null,null,0]
[null,null,null,null,null,null,null,null,0]
[null,null,null,null,null,null,null,null,0]
[null,null,null,null,null,null,null,null,0]
[null,null,null,null,null,null,null,null,0]
[null,null,null,null,null,null,null,null,0]
[null,null,null,null,null,null,null,null,0]
[null,null,null,null,null,null,null,null,0]
["Insérer des lignes ici si nécessaire"]
[]
[null,null,""]
["Code Fond","Budget ",null,null,"Engagé","Réceptionné","M. Forte",null,"Atterissage"]
[null,null,null,null,{"$f":"SUM(E473:E483)","v":0},{"$f":"SUM(F473:F483)","v":0},{"$f":"SUM(G473:G483)","v":0},{"$f":"SUM(H473:H483)","v":0},{"$f":"SUM(I473:I483)","v":0}]
[null,null,"N° SAP","Description","Engagé","Réceptionné","Maturité forte","Maturité faible","Atterrissage"]
[null,null,null,null,null,null,null,null,{"$f":"IF(F473=\"\",E473,F473)+G473+H473","v":0}]
[null,null,null,null,null,null,null,null,{"$f":"IF(F474=\"\",E474,F474)+G474+H474","v":0}]
[null,null,null,null,null,null,null,null,0]
[null,null,null,null,null,null,null,null,0]
[null,null,null,null,null,null,null,null,0]
[null,null,null,null,null,null,null,null,0]
[null,null,null,null,null,null,null,null,0]
[null,null,null,null,null,null,null,null,0]
[null,null,null,null,null,null,null,null,0]
[null,null,null,null,null,null,null,null,0]
["Insérer des lignes ici si nécessaire"]
[]
[null,null,""]
["Code Fond","Budget ",null,null,"Engagé","Réceptionné","M. Forte",null,"Atterissage"]
[null,null,null,null,{"$f":"SUM(E489:E499)","v":0},{"$f":"SUM(F489:F499)","v":0},{"$f":"SUM(G489:G499)","v":0},{"$f":"SUM(H489:H499)","v":0},{"$f":"SUM(I489:I499)","v":0}]
[null,null,"N° SAP","Description","Engagé","Réceptionné","Maturité forte","Maturité faible","Atterrissage"]
[null,null,null,null,null,null,null,null,{"$f":"IF(F489=\"\",E489,F489)+G489+H489","v":0}]
[null,null,null,null,null,null,null,null,{"$f":"IF(F490=\"\",E490,F490)+G490+H490","v":0}]
[null,null,null,null,null,null,null,null,0]
[null,null,null,null,null,null,null,null,0]
[null,null,null,null,null,null,null,null,0]
[null,null,null,null,null,null,null,null,0]
[null,null,null,null,null,null,null,null,0]
[null,null,null,null,null,null,null,null,0]
[null,null,null,null,null,null,null,null,0]
[null,null,null,null,null,null,null,null,0]
["Insérer des lignes ici si nécessaire"]
[]
[null,null,""]
["Code Fond","Budget ",null,null,"Engagé","Réceptionné","M. Forte",null,"Atterissage"]
[null,null,null,null,{"$f":"SUM(E505:E515)","v":0},{"$f":"SUM(F505:F515)","v":0},{"$f":"SUM(G505:G515)","v":0},{"$f":"SUM(H505:H515)","v":0},{"$f":"SUM(I505:I515)","v":0}]
[null,null,"N° SAP","Description","Engagé","Réceptionné","Maturité forte","Maturité faible","Atterrissage"]
[null,null,null,null,null,null,null,null,{"$f":"IF(F505=\"\",E505,F505)+G505+H505","v":0}]
[null,null,null,null,null,null,null,null,{"$f":"IF(F506=\"\",E506,F506)+G506+H506","v":0}]
[null,null,null,null,null,null,null,null,0]
[null,null,null,null,null,null,null,null,0]
[null,null,null,null,null,null,null,null,0]
[null,null,null,null,null,null,null,null,0]
[null,null,null,null,null,null,null,null,0]
[null,null,null,null,null,null,null,null,0]
[null,null,null,null,null,null,null,null,0]
[null,null,null,null,null,null,null,null,0]
["Insérer des lignes ici si nécessaire"]

{"sheet":"DIR3","index":3,"n_rows":515,"n_cols":18,"rows_kept":515,"cut":false,"hidden":false,"merged":[[487,0,497,0],[498,0,498,8],[500,2,500,8],[503,0,513,0],[514,0,514,8],[484,2,484,8],[423,0,433,0],[434,0,434,8],[436,2,436,8],[439,0,449,0],[450,0,450,8],[452,2,452,8],[455,0,465,0],[466,0,466,8],[468,2,468,8],[471,0,481,0],[482,0,482,8],[420,2,420,8],[359,0,369,0],[370,0,370,8],[372,2,372,8],[375,0,385,0],[386,0,386,8],[388,2,388,8],[391,0,401,0],[402,0,402,8],[404,2,404,8],[407,0,417,0],[418,0,418,8],[356,2,356,8],[295,0,305,0],[306,0,306,8],[308,2,308,8],[311,0,321,0],[322,0,322,8],[324,2,324,8],[327,0,337,0],[338,0,338,8],[340,2,340,8],[343,0,353,0],[354,0,354,8],[292,2,292,8],[231,0,241,0],[242,0,242,8],[244,2,244,8],[247,0,257,0],[258,0,258,8],[260,2,260,8],[263,0,273,0],[274,0,274,8],[276,2,276,8],[279,0,289,0],[290,0,290,8],[228,2,228,8],[167,0,177,0],[178,0,178,8],[180,2,180,8],[183,0,193,0],[194,0,194,8],[196,2,196,8],[199,0,209,0],[210,0,210,8],[212,2,212,8],[215,0,225,0],[226,0,226,8],[164,2,164,8],[103,0,113,0],[114,0,114,8],[116,2,116,8],[119,0,129,0],[130,0,130,8],[132,2,132,8],[135,0,145,0],[146,0,146,8],[148,2,148,8],[151,0,161,0],[162,0,162,8],[100,2,100,8],[39,0,49,0],[50,0,50,8],[52,2,52,8],[55,0,65,0],[66,0,66,8],[68,2,68,8],[71,0,81,0],[82,0,82,8],[84,2,84,8],[87,0,97,0],[98,0,98,8],[2,11,2,17],[5,0,15,0],[7,10,36,10],[17,0,17,8],[21,0,31,0],[33,0,33,8],[36,2,36,8]]}
["CF"]
[null,"Suivi budget direction 3"]
[null,null,null,null,null,null,null,null,null,null,null,"SYNTHESE DU DEPARTEMENT"]
["Code Fond","Budget ",null,"CUMUL","Engagé","Réceptionné","M. Forte",null,"Atterissage",null,"Type","Code fond","Budget","Engagé","Réceptionné","M. Forte","M. Faible","Atterissage"]
["RE00001",4,null,null,{"$f":"SUM(E7:E18)","v":55},{"$f":"SUM(F7:F18)","v":16},{"$f":"SUM(G7:G18)","v":120},{"$f":"SUM(H7:H18)","v":32},{"$f":"SUM(I7:I18)","v":223},null,"MIB",{"$f":"A5","v":"RE00001"},{"$f":"B5","v":4},{"$f":"E5","v":55},{"$f":"F5","v":16},120,32,223]
["MIB",null,"N° SAP","Description","Engagé","Réceptionné","Maturité forte","Maturité faible","Atterrissage",null,"MEVO",{"$f":"A21","v":"ME00700"},{"$f":"B21","v":50},{"$f":"E21","v":50},{"$f":"F21","v":15},65,0,80]
[null,null,4400785440,"Commande T1",55,null,null,null,{"$f":"IF(F7=\"\",E7,F7)+G7+H7","v":55}]
[null,null,null,"Commande T2",null,16,40,null,{"$f":"IF(F8=\"\",E8,F8)+G8+H8","v":56},null,"PROJETS",{"$f":"A39","v":"PIT0054"},{"$f":"B39","v":40},{"$f":"E39","v":45},{"$f":"F39","v":25},27,14,111]
[null,null,null,"Commande T3",null,null,40,16,{"$f":"IF(F9=\"\",E9,F9)+G9+H9","v":56},null,null,{"$f":"A40","v":0},{"$f":"B55","v":50},{"$f":"E55","v":0},{"$f":"F55","v":0},0,0,0]
[null,null,null,"Commande T4",null,null,40,16,56,null,null,0,{"$f":"B71","v":50},{"$f":"E71","v":0},{"$f":"F71","v":0},0,0,0]
[null,null,null,0,null,null,null,null,0,null,null,0,{"$f":"B87","v":40},{"$f":"E87","v":0},{"$f":"F87","v":0},0,0,0]
[null,null,null,0,null,null,null,null,0,null,null,0,{"$f":"B103","v":45},{"$f":"E103","v":0},{"$f":"F103","v":0},0,0,0]
[null,null,null,0,null,null,null,null,0,null,null,{"$f":"A119","v":"PIT0025"},{"$f":"B119","v":45},{"$f":"E119","v":0},{"$f":"F119","v":0},0,0,0]
[null,null,null,0,null,null,null,null,0,null,null,{"$f":"A135","v":0},{"$f":"B135","v":0},{"$f":"E135","v":0},{"$f":"F135","v":0},0,0,0]
[null,null,null,0,null,null,null,null,0,null,null,{"$f":"A151","v":0},{"$f":"B151","v":0},{"$f":"E151","v":0},{"$f":"F151","v":0},0,0,0]
[null,null,null,0,null,null,null,null,0,null,null,{"$f":"A167","v":0},{"$f":"B167","v":0},{"$f":"E167","v":0},{"$f":"F167","v":0},0,0,0]
[null,null,null,0,null,null,null,null,0,null,null,{"$f":"A183","v":0},{"$f":"B183","v":0},{"$f":"E183","v":0},{"$f":"F183","v":0},0,0,0]
["Insérer des cellules ici si nécessaire",null,null,null,null,null,null,null,null,null,null,{"$f":"A199","v":0},{"$f":"B199","v":0},{"$f":"E199","v":0},{"$f":"F199","v":0},0,0,0]
[null,null,null,null,null,null,null,null,null,null,null,{"$f":"A215","v":0},{"$f":"B215","v":0},{"$f":"E215","v":0},{"$f":"F215","v":0},0,0,0]
["Code Fond","Budget ",null,null,"Engagé","Réceptionné","M. Forte",null,"Atterissage",null,null,{"$f":"A231","v":0},{"$f":"B231","v":0},{"$f":"E231","v":0},{"$f":"F231","v":0},0,0,0]
["ME00700",50,null,null,{"$f":"SUM(E23:E34)","v":50},{"$f":"SUM(F23:F34)","v":15},{"$f":"SUM(G23:G34)","v":65},{"$f":"SUM(H23:H34)","v":0},{"$f":"SUM(I23:I34)","v":80},null,null,{"$f":"A247","v":0},{"$f":"B247","v":0},{"$f":"E247","v":0},{"$f":"F247","v":0},0,0,0]
["MEV",null,"N° SAP","Description","Engagé","Réceptionné","Maturité forte","Maturité faible","Atterrissage",null,null,{"$f":"A263","v":0},{"$f":"B263","v":0},{"$f":"E263","v":0},{"$f":"F263","v":0},0,0,0]
[null,null,4400765263,"Maintenance évolutive 1",50,15,null,null,{"$f":"IF(F23=\"\",E23,F23)+G23+H23","v":15},null,null,{"$f":"A279","v":0},{"$f":"B279","v":0},{"$f":"C279","v":0},0,0,0,0]
[null,null,null,"Maintenance évolutive 2",null,null,15,null,{"$f":"IF(F24=\"\",E24,F24)+G24+H24","v":15},null,null,{"$f":"A295","v":0},{"$f":"B295","v":0},{"$f":"E295","v":0},{"$f":"F295","v":0},0,0,0]
[null,null,null,"Maintenance évolutive 3",null,null,20,null,{"$f":"IF(F25=\"\",E25,F25)+G25+H25","v":20},null,null,{"$f":"A311","v":0},{"$f":"B311","v":0},{"$f":"E311","v":0},{"$f":"F311","v":0},0,0,0]
[null,null,null,"Maintenance évolutive 4",null,null,30,null,30,null,null,{"$f":"A327","v":0},{"$f":"B327","v":0},{"$f":"E327","v":0},{"$f":"F327","v":0},0,0,0]
[null,null,null,0,null,null,null,null,0,null,null,{"$f":"A343","v":0},{"$f":"B343","v":0},{"$f":"E343","v":0},{"$f":"F343","v":0},0,0,0]
[null,null,null,0,null,null,null,null,0,null,null,{"$f":"A359","v":0},{"$f":"B359","v":0},{"$f":"E359","v":0},{"$f":"F359","v":0},0,0,0]
[null,null,null,0,null,null,null,null,0,null,null,{"$f":"A375","v":0},{"$f":"B375","v":0},{"$f":"E375","v":0},{"$f":"F375","v":0},0,0,0]
[null,null,null,0,null,null,null,null,0,null,null,{"$f":"A391","v":0},{"$f":"B391","v":0},{"$f":"E391","v":0},{"$f":"F391","v":0},0,0,0]
[null,null,null,0,null,null,null,null,0,null,null,{"$f":"A407","v":0},{"$f":"B407","v":0},{"$f":"E407","v":0},{"$f":"F407","v":0},0,0,0]
[null,null,null,0,null,null,null,null,0,null,null,{"$f":"A423","v":0},{"$f":"B423","v":0},{"$f":"E423","v":0},{"$f":"F423","v":0},0,0,0]
[null,null,null,0,null,null,null,null,null,null,null,{"$f":"A439","v":0},{"$f":"B439","v":0},{"$f":"E439","v":0},{"$f":"F439","v":0},0,0,0]
["Insérer des cellules ici si nécessaire",null,null,null,null,null,null,null,null,null,null,{"$f":"A455","v":0},{"$f":"B455","v":0},{"$f":"E455","v":0},{"$f":"F455","v":0},0,0,0]
[null,null,null,null,null,null,null,null,null,null,null,{"$f":"A471","v":0},{"$f":"B471","v":0},{"$f":"E471","v":0},{"$f":"F471","v":0},0,0,0]
[null,null,null,null,null,null,null,null,null,null,null,{"$f":"A487","v":0},{"$f":"B487","v":0},{"$f":"E487","v":0},{"$f":"F487","v":0},0,0,0]
[null,null,"TP-004 Nouvel Environnement de Travail (Services Front)",null,null,null,null,null,null,null,null,{"$f":"A503","v":0},{"$f":"B503","v":0},{"$f":"E503","v":0},{"$f":"F503","v":0},0,0,0]
["Code Fond","Budget ",null,null,"Engagé","Réceptionné","M. Forte",null,"Atterissage"]
["PIT0054",40,null,null,{"$f":"SUM(E41:E51)","v":45},{"$f":"SUM(F41:F51)","v":25},{"$f":"SUM(G41:G51)","v":27},{"$f":"SUM(H41:H51)","v":14},{"$f":"SUM(I41:I51)","v":111}]
[null,null,"N° SAP","Description","Engagé","Réceptionné","Maturité forte","Maturité faible","Atterrissage"]
[null,null,4400596354,"Projet NET T1",45,null,null,null,{"$f":"IF(F41=\"\",E41,F41)+G41+H41","v":45}]
[null,null,null,"Projet NET T2",null,25,null,null,{"$f":"IF(F42=\"\",E42,F42)+G42+H42","v":25}]
[null,null,null,"Projet NET T3",null,null,12,null,12]
[null,null,null,"Projet NET T4",null,null,15,14,29]
[null,null,null,0,null,null,null,null,0]
[null,null,null,0,null,null,null,null,0]
[null,null,null,0,null,null,null,null,0]
[null,null,null,0,null,null,null,null,0]
[null,null,null,0,null,null,null,null,0]
[null,null,null,0,null,null,null,null,0]
["Insérer des lignes ici si nécessaire"]
[]
[null,null,"TC-005  - Offres Cloud - Cloud Fabricant"]
["Code Fond","Budget ",null,null,"Engagé","Réceptionné","M. Forte",null,"Atterissage"]
["PIT0052",50,null,null,{"$f":"SUM(E57:E67)","v":0},{"$f":"SUM(F57:F67)","v":0},{"$f":"SUM(G57:G67)","v":0},{"$f":"SUM(H57:H67)","v":0},{"$f":"SUM(I57:I67)","v":0}]
[null,null,"N° SAP","Description","Engagé","Réceptionné","Maturité forte","Maturité faible","Atterrissage"]
[null,null,null,null,null,null,null,null,{"$f":"IF(F57=\"\",E57,F57)+G57+H57","v":0}]
[null,null,null,null,null,null,null,null,{"$f":"IF(F58=\"\",E58,F58)+G58+H58","v":0}]
[null,null,null,null,null,null,null,null,0]
[null,null,null,null,null,null,null,null,0]
[null,null,null,null,null,null,null,null,0]
[null,null,null,null,null,null,null,null,0]
[null,null,null,null,null,null,null,null,0]
[null,null,null,null,null,null,null,null,0]
[null,null,null,null,null,null,null,null,0]
[null,null,null,null,null,null,null,null,0]
["Insérer des lignes ici si nécessaire"]
[]
[null,null,{"$error":"#REF!"}]
[null,"Budget ",null,null,"Engagé","Réceptionné","M. Forte",null,"Atterissage"]
["PI00008",50,null,null,{"$f":"SUM(E73:E83)","v":0},{"$f":"SUM(F73:F83)","v":0},{"$f":"SUM(G73:G83)","v":0},{"$f":"SUM(H73:H83)","v":0},{"$f":"SUM(I73:I83)","v":0}]
[null,null,"N° SAP","Description","Engagé","Réceptionné","Maturité forte","Maturité faible","Atterrissage"]
[null,null,null,null,null,null,null,null,{"$f":"IF(F73=\"\",E73,F73)+G73+H73","v":0}]
[null,null,null,null,null,null,null,null,{"$f":"IF(F74=\"\",E74,F74)+G74+H74","v":0}]
[null,null,null,null,null,null,null,null,0]
[null,null,null,null,null,null,null,null,0]
[null,null,null,null,null,null,null,null,0]
[null,null,null,null,null,null,null,null,0]
[null,null,null,null,null,null,null,null,0]
[null,null,null,null,null,null,null,null,0]
[null,null,null,null,null,null,null,null,0]
[null,null,null,null,null,null,null,null,0]
["Insérer des lignes ici si nécessaire"]
[]
[null,null,"TS-001 - Renforcement sécurité réseau"]
[null,"Budget ",null,null,"Engagé","Réceptionné","M. Forte",null,"Atterissage"]
["PIT0043",40,null,null,{"$f":"SUM(E89:E99)","v":0},{"$f":"SUM(F89:F99)","v":0},{"$f":"SUM(G89:G99)","v":0},{"$f":"SUM(H89:H99)","v":0},{"$f":"SUM(I89:I99)","v":0}]
[null,null,"N° SAP","Description","Engagé","Réceptionné","Maturité forte","Maturité faible","Atterrissage"]
[null,null,null,null,null,null,null,null,{"$f":"IF(F89=\"\",E89,F89)+G89+H89","v":0}]
[null,null,null,null,null,null,null,null,{"$f":"IF(F90=\"\",E90,F90)+G90+H90","v":0}]
[null,null,null,null,null,null,null,null,0]
[null,null,null,null,null,null,null,null,0]
[null,null,null,null,null,null,null,null,0]
[null,null,null,null,null,null,null,null,0]
[null,null,null,null,null,null,null,null,0]
[null,null,null,null,null,null,null,null,0]
[null,null,null,null,null,null,null,null,0]
[null,null,null,null,null,null,null,null,0]
["Insérer des lignes ici si nécessaire"]
[]
[null,null,"TC-005  - Offres Cloud - Cloud Fabricant"]
["Code Fond","Budget ",null,null,"Engagé","Réceptionné","M. Forte",null,"Atterissage"]
["PIT0052",45,null,null,{"$f":"SUM(E105:E115)","v":0},{"$f":"SUM(F105:F115)","v":0},{"$f":"SUM(G105:G115)","v":0},{"$f":"SUM(H105:H115)","v":0},{"$f":"SUM(I105:I115)","v":0}]
[null,null,"N° SAP","Description","Engagé","Réceptionné","Maturité forte","Maturité faible","Atterrissage"]
[null,null,null,null,null,null,null,null,{"$f":"IF(F105=\"\",E105,F105)+G105+H105","v":0}]
[null,null,null,null,null,null,null,null,{"$f":"IF(F106=\"\",E106,F106)+G106+H106","v":0}]
[null,null,null,null,null,null,null,null,0]
[null,null,null,null,null,null,null,null,0]
[null,null,null,null,null,null,null,null,0]
[null,null,null,null,null,null,null,null,0]
[null,null,null,null,null,null,null,null,0]
[null,null,null,null,null,null,null,null,0]
[null,null,null,null,null,null,null,null,0]
[null,null,null,null,null,null,null,null,0]
["Insérer des lignes ici si nécessaire"]
[]
[null,null,"U4 - Nomenclatures et référentiels"]
["Code Fond","Budget ",null,null,"Engagé","Réceptionné","M. Forte",null,"Atterissage"]
["PIT0025",45,null,null,{"$f":"SUM(E121:E131)","v":0},{"$f":"SUM(F121:F131)","v":0},{"$f":"SUM(G121:G131)","v":0},{"$f":"SUM(H121:H131)","v":0},{"$f":"SUM(I121:I131)","v":0}]
[null,null,"N° SAP","Description","Engagé","Réceptionné","Maturité forte","Maturité faible","Atterrissage"]
[null,null,null,null,null,null,null,null,{"$f":"IF(F121=\"\",E121,F121)+G121+H121","v":0}]
[null,null,null,null,null,null,null,null,{"$f":"IF(F122=\"\",E122,F122)+G122+H122","v":0}]
[null,null,null,null,null,null,null,null,0]
[null,null,null,null,null,null,null,null,0]
[null,null,null,null,null,null,null,null,0]
[null,null,null,null,null,null,null,null,0]
[null,null,null,null,null,null,null,null,0]
[null,null,null,null,null,null,null,null,0]
[null,null,null,null,null,null,null,null,0]
[null,null,null,null,null,null,null,null,0]
["Insérer des lignes ici si nécessaire"]
[]
[null,null,""]
["Code Fond","Budget ",null,null,"Engagé","Réceptionné","M. Forte",null,"Atterissage"]
[null,null,null,null,{"$f":"SUM(E137:E147)","v":0},{"$f":"SUM(F137:F147)","v":0},{"$f":"SUM(G137:G147)","v":0},{"$f":"SUM(H137:H147)","v":0},{"$f":"SUM(I137:I147)","v":0}]
[null,null,"N° SAP","Description","Engagé","Réceptionné","Maturité forte","Maturité faible","Atterrissage"]
[null,null,null,null,null,null,null,null,{"$f":"IF(F137=\"\",E137,F137)+G137+H137","v":0}]
[null,null,null,null,null,null,null,null,{"$f":"IF(F138=\"\",E138,F138)+G138+H138","v":0}]
[null,null,null,null,null,null,null,null,0]
[null,null,null,null,null,null,null,null,0]
[null,null,null,null,null,null,null,null,0]
[null,null,null,null,null,null,null,null,0]
[null,null,null,null,null,null,null,null,0]
[null,null,null,null,null,null,null,null,0]
[null,null,null,null,null,null,null,null,0]
[null,null,null,null,null,null,null,null,0]
["Insérer des lignes ici si nécessaire"]
[]
[null,null,""]
["Code Fond","Budget ",null,null,"Engagé","Réceptionné","M. Forte",null,"Atterissage"]
[null,null,null,null,{"$f":"SUM(E153:E163)","v":0},{"$f":"SUM(F153:F163)","v":0},{"$f":"SUM(G153:G163)","v":0},{"$f":"SUM(H153:H163)","v":0},{"$f":"SUM(I153:I163)","v":0}]
[null,null,"N° SAP","Description","Engagé","Réceptionné","Maturité forte","Maturité faible","Atterrissage"]
[null,null,null,null,null,null,null,null,{"$f":"IF(F153=\"\",E153,F153)+G153+H153","v":0}]
[null,null,null,null,null,null,null,null,{"$f":"IF(F154=\"\",E154,F154)+G154+H154","v":0}]
[null,null,null,null,null,null,null,null,0]
[null,null,null,null,null,null,null,null,0]
[null,null,null,null,null,null,null,null,0]
[null,null,null,null,null,null,null,null,0]
[null,null,null,null,null,null,null,null,0]
[null,null,null,null,null,null,null,null,0]
[null,null,null,null,null,null,null,null,0]
[null,null,null,null,null,null,null,null,0]
["Insérer des lignes ici si nécessaire"]
[]
[null,null,""]
["Code Fond","Budget ",null,null,"Engagé","Réceptionné","M. Forte",null,"Atterissage"]
[null,null,null,null,{"$f":"SUM(E169:E179)","v":0},{"$f":"SUM(F169:F179)","v":0},{"$f":"SUM(G169:G179)","v":0},{"$f":"SUM(H169:H179)","v":0},{"$f":"SUM(I169:I179)","v":0}]
[null,null,"N° SAP","Description","Engagé","Réceptionné","Maturité forte","Maturité faible","Atterrissage"]
[null,null,null,null,null,null,null,null,{"$f":"IF(F169=\"\",E169,F169)+G169+H169","v":0}]
[null,null,null,null,null,null,null,null,{"$f":"IF(F170=\"\",E170,F170)+G170+H170","v":0}]
[null,null,null,null,null,null,null,null,0]
[null,null,null,null,null,null,null,null,0]
[null,null,null,null,null,null,null,null,0]
[null,null,null,null,null,null,null,null,0]
[null,null,null,null,null,null,null,null,0]
[null,null,null,null,null,null,null,null,0]
[null,null,null,null,null,null,null,null,0]
[null,null,null,null,null,null,null,null,0]
["Insérer des lignes ici si nécessaire"]
[]
[null,null,""]
["Code Fond","Budget ",null,null,"Engagé","Réceptionné","M. Forte",null,"Atterissage"]
[null,null,null,null,{"$f":"SUM(E185:E195)","v":0},{"$f":"SUM(F185:F195)","v":0},{"$f":"SUM(G185:G195)","v":0},{"$f":"SUM(H185:H195)","v":0},{"$f":"SUM(I185:I195)","v":0}]
[null,null,"N° SAP","Description","Engagé","Réceptionné","Maturité forte","Maturité faible","Atterrissage"]
[null,null,null,null,null,null,null,null,{"$f":"IF(F185=\"\",E185,F185)+G185+H185","v":0}]
[null,null,null,null,null,null,null,null,{"$f":"IF(F186=\"\",E186,F186)+G186+H186","v":0}]
[null,null,null,null,null,null,null,null,0]
[null,null,null,null,null,null,null,null,0]
[null,null,null,null,null,null,null,null,0]
[null,null,null,null,null,null,null,null,0]
[null,null,null,null,null,null,null,null,0]
[null,null,null,null,null,null,null,null,0]
[null,null,null,null,null,null,null,null,0]
[null,null,null,null,null,null,null,null,0]
["Insérer des lignes ici si nécessaire"]
[]
[null,null,""]
["Code Fond","Budget ",null,null,"Engagé","Réceptionné","M. Forte",null,"Atterissage"]
[null,null,null,null,{"$f":"SUM(E201:E211)","v":0},{"$f":"SUM(F201:F211)","v":0},{"$f":"SUM(G201:G211)","v":0},{"$f":"SUM(H201:H211)","v":0},{"$f":"SUM(I201:I211)","v":0}]
[null,null,"N° SAP","Description","Engagé","Réceptionné","Maturité forte","Maturité faible","Atterrissage"]
[null,null,null,null,null,null,null,null,{"$f":"IF(F201=\"\",E201,F201)+G201+H201","v":0}]
[null,null,null,null,null,null,null,null,{"$f":"IF(F202=\"\",E202,F202)+G202+H202","v":0}]
[null,null,null,null,null,null,null,null,0]
[null,null,null,null,null,null,null,null,0]
[null,null,null,null,null,null,null,null,0]
[null,null,null,null,null,null,null,null,0]
[null,null,null,null,null,null,null,null,0]
[null,null,null,null,null,null,null,null,0]
[null,null,null,null,null,null,null,null,0]
[null,null,null,null,null,null,null,null,0]
["Insérer des lignes ici si nécessaire"]
[]
[null,null,""]
["Code Fond","Budget ",null,null,"Engagé","Réceptionné","M. Forte",null,"Atterissage"]
[null,null,null,null,{"$f":"SUM(E217:E227)","v":0},{"$f":"SUM(F217:F227)","v":0},{"$f":"SUM(G217:G227)","v":0},{"$f":"SUM(H217:H227)","v":0},{"$f":"SUM(I217:I227)","v":0}]
[null,null,"N° SAP","Description","Engagé","Réceptionné","Maturité forte","Maturité faible","Atterrissage"]
[null,null,null,null,null,null,null,null,{"$f":"IF(F217=\"\",E217,F217)+G217+H217","v":0}]
[null,null,null,null,null,null,null,null,{"$f":"IF(F218=\"\",E218,F218)+G218+H218","v":0}]
[null,null,null,null,null,null,null,null,0]
[null,null,null,null,null,null,null,null,0]
[null,null,null,null,null,null,null,null,0]
[null,null,null,null,null,null,null,null,0]
[null,null,null,null,null,null,null,null,0]
[null,null,null,null,null,null,null,null,0]
[null,null,null,null,null,null,null,null,0]
[null,null,null,null,null,null,null,null,0]
["Insérer des lignes ici si nécessaire"]
[]
[null,null,""]
["Code Fond","Budget ",null,null,"Engagé","Réceptionné","M. Forte",null,"Atterissage"]
[null,null,null,null,{"$f":"SUM(E233:E243)","v":0},{"$f":"SUM(F233:F243)","v":0},{"$f":"SUM(G233:G243)","v":0},{"$f":"SUM(H233:H243)","v":0},{"$f":"SUM(I233:I243)","v":0}]
[null,null,"N° SAP","Description","Engagé","Réceptionné","Maturité forte","Maturité faible","Atterrissage"]
[null,null,null,null,null,null,null,null,{"$f":"IF(F233=\"\",E233,F233)+G233+H233","v":0}]
[null,null,null,null,null,null,null,null,{"$f":"IF(F234=\"\",E234,F234)+G234+H234","v":0}]
[null,null,null,null,null,null,null,null,0]
[null,null,null,null,null,null,null,null,0]
[null,null,null,null,null,null,null,null,0]
[null,null,null,null,null,null,null,null,0]
[null,null,null,null,null,null,null,null,0]
[null,null,null,null,null,null,null,null,0]
[null,null,null,null,null,null,null,null,0]
[null,null,null,null,null,null,null,null,0]
["Insérer des lignes ici si nécessaire"]
[]
[null,null,""]
["Code Fond","Budget ",null,null,"Engagé","Réceptionné","M. Forte",null,"Atterissage"]
[null,null,null,null,{"$f":"SUM(E249:E259)","v":0},{"$f":"SUM(F249:F259)","v":0},{"$f":"SUM(G249:G259)","v":0},{"$f":"SUM(H249:H259)","v":0},{"$f":"SUM(I249:I259)","v":0}]
[null,null,"N° SAP","Description","Engagé","Réceptionné","Maturité forte","Maturité faible","Atterrissage"]
[null,null,null,null,null,null,null,null,{"$f":"IF(F249=\"\",E249,F249)+G249+H249","v":0}]
[null,null,null,null,null,null,null,null,{"$f":"IF(F250=\"\",E250,F250)+G250+H250","v":0}]
[null,null,null,null,null,null,null,null,0]
[null,null,null,null,null,null,null,null,0]
[null,null,null,null,null,null,null,null,0]
[null,null,null,null,null,null,null,null,0]
[null,null,null,null,null,null,null,null,0]
[null,null,null,null,null,null,null,null,0]
[null,null,null,null,null,null,null,null,0]
[null,null,null,null,null,null,null,null,0]
["Insérer des lignes ici si nécessaire"]
[]
[null,null,""]
["Code Fond","Budget ",null,null,"Engagé","Réceptionné","M. Forte",null,"Atterissage"]
[null,null,null,null,{"$f":"SUM(E265:E275)","v":0},{"$f":"SUM(F265:F275)","v":0},{"$f":"SUM(G265:G275)","v":0},{"$f":"SUM(H265:H275)","v":0},{"$f":"SUM(I265:I275)","v":0}]
[null,null,"N° SAP","Description","Engagé","Réceptionné","Maturité forte","Maturité faible","Atterrissage"]
[null,null,null,null,null,null,null,null,{"$f":"IF(F265=\"\",E265,F265)+G265+H265","v":0}]
[null,null,null,null,null,null,null,null,{"$f":"IF(F266=\"\",E266,F266)+G266+H266","v":0}]
[null,null,null,null,null,null,null,null,0]
[null,null,null,null,null,null,null,null,0]
[null,null,null,null,null,null,null,null,0]
[null,null,null,null,null,null,null,null,0]
[null,null,null,null,null,null,null,null,0]
[null,null,null,null,null,null,null,null,0]
[null,null,null,null,null,null,null,null,0]
[null,null,null,null,null,null,null,null,0]
["Insérer des lignes ici si nécessaire"]
[]
[null,null,""]
["Code Fond","Budget ",null,null,"Engagé","Réceptionné","M. Forte",null,"Atterissage"]
[null,null,null,null,{"$f":"SUM(E281:E291)","v":0},{"$f":"SUM(F281:F291)","v":0},{"$f":"SUM(G281:G291)","v":0},{"$f":"SUM(H281:H291)","v":0},{"$f":"SUM(I281:I291)","v":0}]
[null,null,"N° SAP","Description","Engagé","Réceptionné","Maturité forte","Maturité faible","Atterrissage"]
[null,null,null,null,null,null,null,null,{"$f":"IF(F281=\"\",E281,F281)+G281+H281","v":0}]
[null,null,null,null,null,null,null,null,{"$f":"IF(F282=\"\",E282,F282)+G282+H282","v":0}]
[null,null,null,null,null,null,null,null,0]
[null,null,null,null,null,null,null,null,0]
[null,null,null,null,null,null,null,null,0]
[null,null,null,null,null,null,null,null,0]
[null,null,null,null,null,null,null,null,0]
[null,null,null,null,null,null,null,null,0]
[null,null,null,null,null,null,null,null,0]
[null,null,null,null,null,null,null,null,0]
["Insérer des lignes ici si nécessaire"]
[]
[null,null,""]
["Code Fond","Budget ",null,null,"Engagé","Réceptionné","M. Forte",null,"Atterissage"]
[null,null,null,null,{"$f":"SUM(E297:E307)","v":0},{"$f":"SUM(F297:F307)","v":0},{"$f":"SUM(G297:G307)","v":0},{"$f":"SUM(H297:H307)","v":0},{"$f":"SUM(I297:I307)","v":0}]
[null,null,"N° SAP","Description","Engagé","Réceptionné","Maturité forte","Maturité faible","Atterrissage"]
[null,null,null,null,null,null,null,null,{"$f":"IF(F297=\"\",E297,F297)+G297+H297","v":0}]
[null,null,null,null,null,null,null,null,{"$f":"IF(F298=\"\",E298,F298)+G298+H298","v":0}]
[null,null,null,null,null,null,null,null,0]
[null,null,null,null,null,null,null,null,0]
[null,null,null,null,null,null,null,null,0]
[null,null,null,null,null,null,null,null,0]
[null,null,null,null,null,null,null,null,0]
[null,null,null,null,null,null,null,null,0]
[null,null,null,null,null,null,null,null,0]
[null,null,null,null,null,null,null,null,0]
["Insérer des lignes ici si nécessaire"]
[]
[null,null,""]
["Code Fond","Budget ",null,null,"Engagé","Réceptionné","M. Forte",null,"Atterissage"]
[null,null,null,null,{"$f":"SUM(E313:E323)","v":0},{"$f":"SUM(F313:F323)","v":0},{"$f":"SUM(G313:G323)","v":0},{"$f":"SUM(H313:H323)","v":0},{"$f":"SUM(I313:I323)","v":0}]
[null,null,"N° SAP","Description","Engagé","Réceptionné","Maturité forte","Maturité faible","Atterrissage"]
[null,null,null,null,null,null,null,null,{"$f":"IF(F313=\"\",E313,F313)+G313+H313","v":0}]
[null,null,null,null,null,null,null,null,{"$f":"IF(F314=\"\",E314,F314)+G314+H314","v":0}]
[null,null,null,null,null,null,null,null,0]
[null,null,null,null,null,null,null,null,0]
[null,null,null,null,null,null,null,null,0]
[null,null,null,null,null,null,null,null,0]
[null,null,null,null,null,null,null,null,0]
[null,null,null,null,null,null,null,null,0]
[null,null,null,null,null,null,null,null,0]
[null,null,null,null,null,null,null,null,0]
["Insérer des lignes ici si nécessaire"]
[]
[null,null,""]
["Code Fond","Budget ",null,null,"Engagé","Réceptionné","M. Forte",null,"Atterissage"]
[null,null,null,null,{"$f":"SUM(E329:E339)","v":0},{"$f":"SUM(F329:F339)","v":0},{"$f":"SUM(G329:G339)","v":0},{"$f":"SUM(H329:H339)","v":0},{"$f":"SUM(I329:I339)","v":0}]
[null,null,"N° SAP","Description","Engagé","Réceptionné","Maturité forte","Maturité faible","Atterrissage"]
[null,null,null,null,null,null,null,null,{"$f":"IF(F329=\"\",E329,F329)+G329+H329","v":0}]
[null,null,null,null,null,null,null,null,{"$f":"IF(F330=\"\",E330,F330)+G330+H330","v":0}]
[null,null,null,null,null,null,null,null,0]
[null,null,null,null,null,null,null,null,0]
[null,null,null,null,null,null,null,null,0]
[null,null,null,null,null,null,null,null,0]
[null,null,null,null,null,null,null,null,0]
[null,null,null,null,null,null,null,null,0]
[null,null,null,null,null,null,null,null,0]
[null,null,null,null,null,null,null,null,0]
["Insérer des lignes ici si nécessaire"]
[]
[null,null,""]
["Code Fond","Budget ",null,null,"Engagé","Réceptionné","M. Forte",null,"Atterissage"]
[null,null,null,null,{"$f":"SUM(E345:E355)","v":0},{"$f":"SUM(F345:F355)","v":0},{"$f":"SUM(G345:G355)","v":0},{"$f":"SUM(H345:H355)","v":0},{"$f":"SUM(I345:I355)","v":0}]
[null,null,"N° SAP","Description","Engagé","Réceptionné","Maturité forte","Maturité faible","Atterrissage"]
[null,null,null,null,null,null,null,null,{"$f":"IF(F345=\"\",E345,F345)+G345+H345","v":0}]
[null,null,null,null,null,null,null,null,{"$f":"IF(F346=\"\",E346,F346)+G346+H346","v":0}]
[null,null,null,null,null,null,null,null,0]
[null,null,null,null,null,null,null,null,0]
[null,null,null,null,null,null,null,null,0]
[null,null,null,null,null,null,null,null,0]
[null,null,null,null,null,null,null,null,0]
[null,null,null,null,null,null,null,null,0]
[null,null,null,null,null,null,null,null,0]
[null,null,null,null,null,null,null,null,0]
["Insérer des lignes ici si nécessaire"]
[]
[null,null,""]
["Code Fond","Budget ",null,null,"Engagé","Réceptionné","M. Forte",null,"Atterissage"]
[null,null,null,null,{"$f":"SUM(E361:E371)","v":0},{"$f":"SUM(F361:F371)","v":0},{"$f":"SUM(G361:G371)","v":0},{"$f":"SUM(H361:H371)","v":0},{"$f":"SUM(I361:I371)","v":0}]
[null,null,"N° SAP","Description","Engagé","Réceptionné","Maturité forte","Maturité faible","Atterrissage"]
[null,null,null,null,null,null,null,null,{"$f":"IF(F361=\"\",E361,F361)+G361+H361","v":0}]
[null,null,null,null,null,null,null,null,{"$f":"IF(F362=\"\",E362,F362)+G362+H362","v":0}]
[null,null,null,null,null,null,null,null,0]
[null,null,null,null,null,null,null,null,0]
[null,null,null,null,null,null,null,null,0]
[null,null,null,null,null,null,null,null,0]
[null,null,null,null,null,null,null,null,0]
[null,null,null,null,null,null,null,null,0]
[null,null,null,null,null,null,null,null,0]
[null,null,null,null,null,null,null,null,0]
["Insérer des lignes ici si nécessaire"]
[]
[null,null,""]
["Code Fond","Budget ",null,null,"Engagé","Réceptionné","M. Forte",null,"Atterissage"]
[null,null,null,null,{"$f":"SUM(E377:E387)","v":0},{"$f":"SUM(F377:F387)","v":0},{"$f":"SUM(G377:G387)","v":0},{"$f":"SUM(H377:H387)","v":0},{"$f":"SUM(I377:I387)","v":0}]
[null,null,"N° SAP","Description","Engagé","Réceptionné","Maturité forte","Maturité faible","Atterrissage"]
[null,null,null,null,null,null,null,null,{"$f":"IF(F377=\"\",E377,F377)+G377+H377","v":0}]
[null,null,null,null,null,null,null,null,{"$f":"IF(F378=\"\",E378,F378)+G378+H378","v":0}]
[null,null,null,null,null,null,null,null,0]
[null,null,null,null,null,null,null,null,0]
[null,null,null,null,null,null,null,null,0]
[null,null,null,null,null,null,null,null,0]
[null,null,null,null,null,null,null,null,0]
[null,null,null,null,null,null,null,null,0]
[null,null,null,null,null,null,null,null,0]
[null,null,null,null,null,null,null,null,0]
["Insérer des lignes ici si nécessaire"]
[]
[null,null,""]
["Code Fond","Budget ",null,null,"Engagé","Réceptionné","M. Forte",null,"Atterissage"]
[null,null,null,null,{"$f":"SUM(E393:E403)","v":0},{"$f":"SUM(F393:F403)","v":0},{"$f":"SUM(G393:G403)","v":0},{"$f":"SUM(H393:H403)","v":0},{"$f":"SUM(I393:I403)","v":0}]
[null,null,"N° SAP","Description","Engagé","Réceptionné","Maturité forte","Maturité faible","Atterrissage"]
[null,null,null,null,null,null,null,null,{"$f":"IF(F393=\"\",E393,F393)+G393+H393","v":0}]
[null,null,null,null,null,null,null,null,{"$f":"IF(F394=\"\",E394,F394)+G394+H394","v":0}]
[null,null,null,null,null,null,null,null,0]
[null,null,null,null,null,null,null,null,0]
[null,null,null,null,null,null,null,null,0]
[null,null,null,null,null,null,null,null,0]
[null,null,null,null,null,null,null,null,0]
[null,null,null,null,null,null,null,null,0]
[null,null,null,null,null,null,null,null,0]
[null,null,null,null,null,null,null,null,0]
["Insérer des lignes ici si nécessaire"]
[]
[null,null,""]
["Code Fond","Budget ",null,null,"Engagé","Réceptionné","M. Forte",null,"Atterissage"]
[null,null,null,null,{"$f":"SUM(E409:E419)","v":0},{"$f":"SUM(F409:F419)","v":0},{"$f":"SUM(G409:G419)","v":0},{"$f":"SUM(H409:H419)","v":0},{"$f":"SUM(I409:I419)","v":0}]
[null,null,"N° SAP","Description","Engagé","Réceptionné","Maturité forte","Maturité faible","Atterrissage"]
[null,null,null,null,null,null,null,null,{"$f":"IF(F409=\"\",E409,F409)+G409+H409","v":0}]
[null,null,null,null,null,null,null,null,{"$f":"IF(F410=\"\",E410,F410)+G410+H410","v":0}]
[null,null,null,null,null,null,null,null,0]
[null,null,null,null,null,null,null,null,0]
[null,null,null,null,null,null,null,null,0]
[null,null,null,null,null,null,null,null,0]
[null,null,null,null,null,null,null,null,0]
[null,null,null,null,null,null,null,null,0]
[null,null,null,null,null,null,null,null,0]
[null,null,null,null,null,null,null,null,0]
["Insérer des lignes ici si nécessaire"]
[]
[null,null,""]
["Code Fond","Budget ",null,null,"Engagé","Réceptionné","M. Forte",null,"Atterissage"]
[null,null,null,null,{"$f":"SUM(E425:E435)","v":0},{"$f":"SUM(F425:F435)","v":0},{"$f":"SUM(G425:G435)","v":0},{"$f":"SUM(H425:H435)","v":0},{"$f":"SUM(I425:I435)","v":0}]
[null,null,"N° SAP","Description","Engagé","Réceptionné","Maturité forte","Maturité faible","Atterrissage"]
[null,null,null,null,null,null,null,null,{"$f":"IF(F425=\"\",E425,F425)+G425+H425","v":0}]
[null,null,null,null,null,null,null,null,{"$f":"IF(F426=\"\",E426,F426)+G426+H426","v":0}]
[null,null,null,null,null,null,null,null,0]
[null,null,null,null,null,null,null,null,0]
[null,null,null,null,null,null,null,null,0]
[null,null,null,null,null,null,null,null,0]
[null,null,null,null,null,null,null,null,0]
[null,null,null,null,null,null,null,null,0]
[null,null,null,null,null,null,null,null,0]
[null,null,null,null,null,null,null,null,0]
["Insérer des lignes ici si nécessaire"]
[]
[null,null,""]
["Code Fond","Budget ",null,null,"Engagé","Réceptionné","M. Forte",null,"Atterissage"]
[null,null,null,null,{"$f":"SUM(E441:E451)","v":0},{"$f":"SUM(F441:F451)","v":0},{"$f":"SUM(G441:G451)","v":0},{"$f":"SUM(H441:H451)","v":0},{"$f":"SUM(I441:I451)","v":0}]
[null,null,"N° SAP","Description","Engagé","Réceptionné","Maturité forte","Maturité faible","Atterrissage"]
[null,null,null,null,null,null,null,null,{"$f":"IF(F441=\"\",E441,F441)+G441+H441","v":0}]
[null,null,null,null,null,null,null,null,{"$f":"IF(F442=\"\",E442,F442)+G442+H442","v":0}]
[null,null,null,null,null,null,null,null,0]
[null,null,null,null,null,null,null,null,0]
[null,null,null,null,null,null,null,null,0]
[null,null,null,null,null,null,null,null,0]
[null,null,null,null,null,null,null,null,0]
[null,null,null,null,null,null,null,null,0]
[null,null,null,null,null,null,null,null,0]
[null,null,null,null,null,null,null,null,0]
["Insérer des lignes ici si nécessaire"]
[]
[null,null,""]
["Code Fond","Budget ",null,null,"Engagé","Réceptionné","M. Forte",null,"Atterissage"]
[null,null,null,null,{"$f":"SUM(E457:E467)","v":0},{"$f":"SUM(F457:F467)","v":0},{"$f":"SUM(G457:G467)","v":0},{"$f":"SUM(H457:H467)","v":0},{"$f":"SUM(I457:I467)","v":0}]
[null,null,"N° SAP","Description","Engagé","Réceptionné","Maturité forte","Maturité faible","Atterrissage"]
[null,null,null,null,null,null,null,null,{"$f":"IF(F457=\"\",E457,F457)+G457+H457","v":0}]
[null,null,null,null,null,null,null,null,{"$f":"IF(F458=\"\",E458,F458)+G458+H458","v":0}]
[null,null,null,null,null,null,null,null,0]
[null,null,null,null,null,null,null,null,0]
[null,null,null,null,null,null,null,null,0]
[null,null,null,null,null,null,null,null,0]
[null,null,null,null,null,null,null,null,0]
[null,null,null,null,null,null,null,null,0]
[null,null,null,null,null,null,null,null,0]
[null,null,null,null,null,null,null,null,0]
["Insérer des lignes ici si nécessaire"]
[]
[null,null,""]
["Code Fond","Budget ",null,null,"Engagé","Réceptionné","M. Forte",null,"Atterissage"]
[null,null,null,null,{"$f":"SUM(E473:E483)","v":0},{"$f":"SUM(F473:F483)","v":0},{"$f":"SUM(G473:G483)","v":0},{"$f":"SUM(H473:H483)","v":0},{"$f":"SUM(I473:I483)","v":0}]
[null,null,"N° SAP","Description","Engagé","Réceptionné","Maturité forte","Maturité faible","Atterrissage"]
[null,null,null,null,null,null,null,null,{"$f":"IF(F473=\"\",E473,F473)+G473+H473","v":0}]
[null,null,null,null,null,null,null,null,{"$f":"IF(F474=\"\",E474,F474)+G474+H474","v":0}]
[null,null,null,null,null,null,null,null,0]
[null,null,null,null,null,null,null,null,0]
[null,null,null,null,null,null,null,null,0]
[null,null,null,null,null,null,null,null,0]
[null,null,null,null,null,null,null,null,0]
[null,null,null,null,null,null,null,null,0]
[null,null,null,null,null,null,null,null,0]
[null,null,null,null,null,null,null,null,0]
["Insérer des lignes ici si nécessaire"]
[]
[null,null,""]
["Code Fond","Budget ",null,null,"Engagé","Réceptionné","M. Forte",null,"Atterissage"]
[null,null,null,null,{"$f":"SUM(E489:E499)","v":0},{"$f":"SUM(F489:F499)","v":0},{"$f":"SUM(G489:G499)","v":0},{"$f":"SUM(H489:H499)","v":0},{"$f":"SUM(I489:I499)","v":0}]
[null,null,"N° SAP","Description","Engagé","Réceptionné","Maturité forte","Maturité faible","Atterrissage"]
[null,null,null,null,null,null,null,null,{"$f":"IF(F489=\"\",E489,F489)+G489+H489","v":0}]
[null,null,null,null,null,null,null,null,{"$f":"IF(F490=\"\",E490,F490)+G490+H490","v":0}]
[null,null,null,null,null,null,null,null,0]
[null,null,null,null,null,null,null,null,0]
[null,null,null,null,null,null,null,null,0]
[null,null,null,null,null,null,null,null,0]
[null,null,null,null,null,null,null,null,0]
[null,null,null,null,null,null,null,null,0]
[null,null,null,null,null,null,null,null,0]
[null,null,null,null,null,null,null,null,0]
["Insérer des lignes ici si nécessaire"]
[]
[null,null,""]
["Code Fond","Budget ",null,null,"Engagé","Réceptionné","M. Forte",null,"Atterissage"]
[null,null,null,null,{"$f":"SUM(E505:E515)","v":0},{"$f":"SUM(F505:F515)","v":0},{"$f":"SUM(G505:G515)","v":0},{"$f":"SUM(H505:H515)","v":0},{"$f":"SUM(I505:I515)","v":0}]
[null,null,"N° SAP","Description","Engagé","Réceptionné","Maturité forte","Maturité faible","Atterrissage"]
[null,null,null,null,null,null,null,null,{"$f":"IF(F505=\"\",E505,F505)+G505+H505","v":0}]
[null,null,null,null,null,null,null,null,{"$f":"IF(F506=\"\",E506,F506)+G506+H506","v":0}]
[null,null,null,null,null,null,null,null,0]
[null,null,null,null,null,null,null,null,0]
[null,null,null,null,null,null,null,null,0]
[null,null,null,null,null,null,null,null,0]
[null,null,null,null,null,null,null,null,0]
[null,null,null,null,null,null,null,null,0]
[null,null,null,null,null,null,null,null,0]
[null,null,null,null,null,null,null,null,0]
["Insérer des lignes ici si nécessaire"]

{"sheet":"DIR4","index":4,"n_rows":515,"n_cols":18,"rows_kept":515,"cut":false,"hidden":false,"merged":[[487,0,497,0],[498,0,498,8],[500,2,500,8],[503,0,513,0],[514,0,514,8],[484,2,484,8],[423,0,433,0],[434,0,434,8],[436,2,436,8],[439,0,449,0],[450,0,450,8],[452,2,452,8],[455,0,465,0],[466,0,466,8],[468,2,468,8],[471,0,481,0],[482,0,482,8],[420,2,420,8],[359,0,369,0],[370,0,370,8],[372,2,372,8],[375,0,385,0],[386,0,386,8],[388,2,388,8],[391,0,401,0],[402,0,402,8],[404,2,404,8],[407,0,417,0],[418,0,418,8],[356,2,356,8],[295,0,305,0],[306,0,306,8],[308,2,308,8],[311,0,321,0],[322,0,322,8],[324,2,324,8],[327,0,337,0],[338,0,338,8],[340,2,340,8],[343,0,353,0],[354,0,354,8],[292,2,292,8],[231,0,241,0],[242,0,242,8],[244,2,244,8],[247,0,257,0],[258,0,258,8],[260,2,260,8],[263,0,273,0],[274,0,274,8],[276,2,276,8],[279,0,289,0],[290,0,290,8],[228,2,228,8],[167,0,177,0],[178,0,178,8],[180,2,180,8],[183,0,193,0],[194,0,194,8],[196,2,196,8],[199,0,209,0],[210,0,210,8],[212,2,212,8],[215,0,225,0],[226,0,226,8],[164,2,164,8],[103,0,113,0],[114,0,114,8],[116,2,116,8],[119,0,129,0],[130,0,130,8],[132,2,132,8],[135,0,145,0],[146,0,146,8],[148,2,148,8],[151,0,161,0],[162,0,162,8],[100,2,100,8],[39,0,49,0],[50,0,50,8],[52,2,52,8],[55,0,65,0],[66,0,66,8],[68,2,68,8],[71,0,81,0],[82,0,82,8],[84,2,84,8],[87,0,97,0],[98,0,98,8],[2,11,2,17],[5,0,15,0],[7,10,36,10],[17,0,17,8],[21,0,31,0],[33,0,33,8],[36,2,36,8]]}
["CF"]
[null,"Suivi budget direction 4"]
[null,null,null,null,null,null,null,null,null,null,null,"SYNTHESE DU DEPARTEMENT"]
["Code Fond","Budget ",null,"CUMUL","Engagé","Réceptionné","M. Forte",null,"Atterissage",null,"Type","Code fond","Budget","Engagé","Réceptionné","M. Forte","M. Faible","Atterissage"]
["RE00001",null,null,null,{"$f":"SUM(E7:E18)","v":55},{"$f":"SUM(F7:F18)","v":16},{"$f":"SUM(G7:G18)","v":120},{"$f":"SUM(H7:H18)","v":32},{"$f":"SUM(I7:I18)","v":223},null,"MIB",{"$f":"A5","v":"RE00001"},{"$f":"B5","v":0},{"$f":"E5","v":55},{"$f":"F5","v":16},120,32,223]
["MIB",null,"N° SAP","Description","Engagé","Réceptionné","Maturité forte","Maturité faible","Atterrissage",null,"MEVO",{"$f":"A21","v":"ME00700"},{"$f":"B21","v":0},{"$f":"E21","v":50},{"$f":"F21","v":15},65,0,80]
[null,null,4400785440,"Commande T1",55,null,null,null,{"$f":"IF(F7=\"\",E7,F7)+G7+H7","v":55}]
[null,null,null,"Commande T2",null,16,40,null,{"$f":"IF(F8=\"\",E8,F8)+G8+H8","v":56},null,"PROJETS",{"$f":"A39","v":"PIT0054"},{"$f":"B39","v":0},{"$f":"E39","v":45},{"$f":"F39","v":25},27,14,111]
[null,null,null,"Commande T3",null,null,40,16,{"$f":"IF(F9=\"\",E9,F9)+G9+H9","v":56},null,null,{"$f":"A55","v":0},{"$f":"B55","v":0},{"$f":"E55","v":0},{"$f":"F55","v":0},0,0,0]
[null,null,null,"Commande T4",null,null,40,16,56,null,null,{"$f":"A71","v":0},{"$f":"B71","v":0},{"$f":"E71","v":0},{"$f":"F71","v":0},0,0,0]
[null,null,null,0,null,null,null,null,0,null,null,{"$f":"A87","v":0},{"$f":"B87","v":0},{"$f":"E87","v":0},{"$f":"F87","v":0},0,0,0]
[null,null,null,0,null,null,null,null,0,null,null,{"$f":"A103","v":0},{"$f":"B103","v":0},{"$f":"E103","v":0},{"$f":"F103","v":0},0,0,0]
[null,null,null,0,null,null,null,null,0,null,null,{"$f":"A119","v":0},{"$f":"B119","v":0},{"$f":"E119","v":0},{"$f":"F119","v":0},0,0,0]
[null,null,null,0,null,null,null,null,0,null,null,{"$f":"A135","v":0},{"$f":"B135","v":0},{"$f":"E135","v":0},{"$f":"F135","v":0},0,0,0]
[null,null,null,0,null,null,null,null,0,null,null,{"$f":"A151","v":0},{"$f":"B151","v":0},{"$f":"E151","v":0},{"$f":"F151","v":0},0,0,0]
[null,null,null,0,null,null,null,null,0,null,null,{"$f":"A167","v":0},{"$f":"B167","v":0},{"$f":"E167","v":0},{"$f":"F167","v":0},0,0,0]
[null,null,null,0,null,null,null,null,0,null,null,{"$f":"A183","v":0},{"$f":"B183","v":0},{"$f":"E183","v":0},{"$f":"F183","v":0},0,0,0]
["Insérer des cellules ici si nécessaire",null,null,null,null,null,null,null,null,null,null,{"$f":"A199","v":0},{"$f":"B199","v":0},{"$f":"E199","v":0},{"$f":"F199","v":0},0,0,0]
[null,null,null,null,null,null,null,null,null,null,null,{"$f":"A215","v":0},{"$f":"B215","v":0},{"$f":"E215","v":0},{"$f":"F215","v":0},0,0,0]
["Code Fond","Budget ",null,null,"Engagé","Réceptionné","M. Forte",null,"Atterissage",null,null,{"$f":"A231","v":0},{"$f":"B231","v":0},{"$f":"E231","v":0},{"$f":"F231","v":0},0,0,0]
["ME00700",null,null,null,{"$f":"SUM(E23:E34)","v":50},{"$f":"SUM(F23:F34)","v":15},{"$f":"SUM(G23:G34)","v":65},{"$f":"SUM(H23:H34)","v":0},{"$f":"SUM(I23:I34)","v":80},null,null,{"$f":"A247","v":0},{"$f":"B247","v":0},{"$f":"E247","v":0},{"$f":"F247","v":0},0,0,0]
["MEV",null,"N° SAP","Description","Engagé","Réceptionné","Maturité forte","Maturité faible","Atterrissage",null,null,{"$f":"A263","v":0},{"$f":"B263","v":0},{"$f":"E263","v":0},{"$f":"F263","v":0},0,0,0]
[null,null,4400765263,"Maintenance évolutive 1",50,15,null,null,{"$f":"IF(F23=\"\",E23,F23)+G23+H23","v":15},null,null,{"$f":"A279","v":0},{"$f":"B279","v":0},{"$f":"C279","v":0},0,0,0,0]
[null,null,null,"Maintenance évolutive 2",null,null,15,null,{"$f":"IF(F24=\"\",E24,F24)+G24+H24","v":15},null,null,{"$f":"A295","v":0},{"$f":"B295","v":0},{"$f":"E295","v":0},{"$f":"F295","v":0},0,0,0]
[null,null,null,"Maintenance évolutive 3",null,null,20,null,{"$f":"IF(F25=\"\",E25,F25)+G25+H25","v":20},null,null,{"$f":"A311","v":0},{"$f":"B311","v":0},{"$f":"E311","v":0},{"$f":"F311","v":0},0,0,0]
[null,null,null,"Maintenance évolutive 4",null,null,30,null,30,null,null,{"$f":"A327","v":0},{"$f":"B327","v":0},{"$f":"E327","v":0},{"$f":"F327","v":0},0,0,0]
[null,null,null,0,null,null,null,null,0,null,null,{"$f":"A343","v":0},{"$f":"B343","v":0},{"$f":"E343","v":0},{"$f":"F343","v":0},0,0,0]
[null,null,null,0,null,null,null,null,0,null,null,{"$f":"A359","v":0},{"$f":"B359","v":0},{"$f":"E359","v":0},{"$f":"F359","v":0},0,0,0]
[null,null,null,0,null,null,null,null,0,null,null,{"$f":"A375","v":0},{"$f":"B375","v":0},{"$f":"E375","v":0},{"$f":"F375","v":0},0,0,0]
[null,null,null,0,null,null,null,null,0,null,null,{"$f":"A391","v":0},{"$f":"B391","v":0},{"$f":"E391","v":0},{"$f":"F391","v":0},0,0,0]
[null,null,null,0,null,null,null,null,0,null,null,{"$f":"A407","v":0},{"$f":"B407","v":0},{"$f":"E407","v":0},{"$f":"F407","v":0},0,0,0]
[null,null,null,0,null,null,null,null,0,null,null,{"$f":"A423","v":0},{"$f":"B423","v":0},{"$f":"E423","v":0},{"$f":"F423","v":0},0,0,0]
[null,null,null,0,null,null,null,null,null,null,null,{"$f":"A439","v":0},{"$f":"B439","v":0},{"$f":"E439","v":0},{"$f":"F439","v":0},0,0,0]
["Insérer des cellules ici si nécessaire",null,null,null,null,null,null,null,null,null,null,{"$f":"A455","v":0},{"$f":"B455","v":0},{"$f":"E455","v":0},{"$f":"F455","v":0},0,0,0]
[null,null,null,null,null,null,null,null,null,null,null,{"$f":"A471","v":0},{"$f":"B471","v":0},{"$f":"E471","v":0},{"$f":"F471","v":0},0,0,0]
[null,null,null,null,null,null,null,null,null,null,null,{"$f":"A487","v":0},{"$f":"B487","v":0},{"$f":"E487","v":0},{"$f":"F487","v":0},0,0,0]
[null,null,"TP-004 Nouvel Environnement de Travail (Services Front)",null,null,null,null,null,null,null,null,{"$f":"A503","v":0},{"$f":"B503","v":0},{"$f":"E503","v":0},{"$f":"F503","v":0},0,0,0]
["Code Fond","Budget ",null,null,"Engagé","Réceptionné","M. Forte",null,"Atterissage"]
["PIT0054",null,null,null,{"$f":"SUM(E41:E51)","v":45},{"$f":"SUM(F41:F51)","v":25},{"$f":"SUM(G41:G51)","v":27},{"$f":"SUM(H41:H51)","v":14},{"$f":"SUM(I41:I51)","v":111}]
[null,null,"N° SAP","Description","Engagé","Réceptionné","Maturité forte","Maturité faible","Atterrissage"]
[null,null,4400596354,"Projet NET T1",45,null,null,null,{"$f":"IF(F41=\"\",E41,F41)+G41+H41","v":45}]
[null,null,null,"Projet NET T2",null,25,null,null,{"$f":"IF(F42=\"\",E42,F42)+G42+H42","v":25}]
[null,null,null,"Projet NET T3",null,null,12,null,12]
[null,null,null,"Projet NET T4",null,null,15,14,29]
[null,null,null,0,null,null,null,null,0]
[null,null,null,0,null,null,null,null,0]
[null,null,null,0,null,null,null,null,0]
[null,null,null,0,null,null,null,null,0]
[null,null,null,0,null,null,null,null,0]
[null,null,null,0,null,null,null,null,0]
["Insérer des lignes ici si nécessaire"]
[]
[null,null,""]
["PIT0052","Budget ",null,null,"Engagé","Réceptionné","M. Forte",null,"Atterissage"]
[null,null,null,null,{"$f":"SUM(E57:E67)","v":0},{"$f":"SUM(F57:F67)","v":0},{"$f":"SUM(G57:G67)","v":0},{"$f":"SUM(H57:H67)","v":0},{"$f":"SUM(I57:I67)","v":0}]
[null,null,"N° SAP","Description","Engagé","Réceptionné","Maturité forte","Maturité faible","Atterrissage"]
[null,null,null,null,null,null,null,null,{"$f":"IF(F57=\"\",E57,F57)+G57+H57","v":0}]
[null,null,null,null,null,null,null,null,{"$f":"IF(F58=\"\",E58,F58)+G58+H58","v":0}]
[null,null,null,null,null,null,null,null,0]
[null,null,null,null,null,null,null,null,0]
[null,null,null,null,null,null,null,null,0]
[null,null,null,null,null,null,null,null,0]
[null,null,null,null,null,null,null,null,0]
[null,null,null,null,null,null,null,null,0]
[null,null,null,null,null,null,null,null,0]
[null,null,null,null,null,null,null,null,0]
["Insérer des lignes ici si nécessaire"]
[]
[null,null,""]
["PI00008","Budget ",null,null,"Engagé","Réceptionné","M. Forte",null,"Atterissage"]
[null,null,null,null,{"$f":"SUM(E73:E83)","v":0},{"$f":"SUM(F73:F83)","v":0},{"$f":"SUM(G73:G83)","v":0},{"$f":"SUM(H73:H83)","v":0},{"$f":"SUM(I73:I83)","v":0}]
[null,null,"N° SAP","Description","Engagé","Réceptionné","Maturité forte","Maturité faible","Atterrissage"]
[null,null,null,null,null,null,null,null,{"$f":"IF(F73=\"\",E73,F73)+G73+H73","v":0}]
[null,null,null,null,null,null,null,null,{"$f":"IF(F74=\"\",E74,F74)+G74+H74","v":0}]
[null,null,null,null,null,null,null,null,0]
[null,null,null,null,null,null,null,null,0]
[null,null,null,null,null,null,null,null,0]
[null,null,null,null,null,null,null,null,0]
[null,null,null,null,null,null,null,null,0]
[null,null,null,null,null,null,null,null,0]
[null,null,null,null,null,null,null,null,0]
[null,null,null,null,null,null,null,null,0]
["Insérer des lignes ici si nécessaire"]
[]
[null,null,""]
["PIT0043","Budget ",null,null,"Engagé","Réceptionné","M. Forte",null,"Atterissage"]
[null,null,null,null,{"$f":"SUM(E89:E99)","v":0},{"$f":"SUM(F89:F99)","v":0},{"$f":"SUM(G89:G99)","v":0},{"$f":"SUM(H89:H99)","v":0},{"$f":"SUM(I89:I99)","v":0}]
[null,null,"N° SAP","Description","Engagé","Réceptionné","Maturité forte","Maturité faible","Atterrissage"]
[null,null,null,null,null,null,null,null,{"$f":"IF(F89=\"\",E89,F89)+G89+H89","v":0}]
[null,null,null,null,null,null,null,null,{"$f":"IF(F90=\"\",E90,F90)+G90+H90","v":0}]
[null,null,null,null,null,null,null,null,0]
[null,null,null,null,null,null,null,null,0]
[null,null,null,null,null,null,null,null,0]
[null,null,null,null,null,null,null,null,0]
[null,null,null,null,null,null,null,null,0]
[null,null,null,null,null,null,null,null,0]
[null,null,null,null,null,null,null,null,0]
[null,null,null,null,null,null,null,null,0]
["Insérer des lignes ici si nécessaire"]
[]
[null,null,""]
["Code Fond","Budget ",null,null,"Engagé","Réceptionné","M. Forte",null,"Atterissage"]
[null,null,null,null,{"$f":"SUM(E105:E115)","v":0},{"$f":"SUM(F105:F115)","v":0},{"$f":"SUM(G105:G115)","v":0},{"$f":"SUM(H105:H115)","v":0},{"$f":"SUM(I105:I115)","v":0}]
[null,null,"N° SAP","Description","Engagé","Réceptionné","Maturité forte","Maturité faible","Atterrissage"]
[null,null,null,null,null,null,null,null,{"$f":"IF(F105=\"\",E105,F105)+G105+H105","v":0}]
[null,null,null,null,null,null,null,null,{"$f":"IF(F106=\"\",E106,F106)+G106+H106","v":0}]
[null,null,null,null,null,null,null,null,0]
[null,null,null,null,null,null,null,null,0]
[null,null,null,null,null,null,null,null,0]
[null,null,null,null,null,null,null,null,0]
[null,null,null,null,null,null,null,null,0]
[null,null,null,null,null,null,null,null,0]
[null,null,null,null,null,null,null,null,0]
[null,null,null,null,null,null,null,null,0]
["Insérer des lignes ici si nécessaire"]
[]
[null,null,""]
["Code Fond","Budget ",null,null,"Engagé","Réceptionné","M. Forte",null,"Atterissage"]
[null,null,null,null,{"$f":"SUM(E121:E131)","v":0},{"$f":"SUM(F121:F131)","v":0},{"$f":"SUM(G121:G131)","v":0},{"$f":"SUM(H121:H131)","v":0},{"$f":"SUM(I121:I131)","v":0}]
[null,null,"N° SAP","Description","Engagé","Réceptionné","Maturité forte","Maturité faible","Atterrissage"]
[null,null,null,null,null,null,null,null,{"$f":"IF(F121=\"\",E121,F121)+G121+H121","v":0}]
[null,null,null,null,null,null,null,null,{"$f":"IF(F122=\"\",E122,F122)+G122+H122","v":0}]
[null,null,null,null,null,null,null,null,0]
[null,null,null,null,null,null,null,null,0]
[null,null,null,null,null,null,null,null,0]
[null,null,null,null,null,null,null,null,0]
[null,null,null,null,null,null,null,null,0]
[null,null,null,null,null,null,null,null,0]
[null,null,null,null,null,null,null,null,0]
[null,null,null,null,null,null,null,null,0]
["Insérer des lignes ici si nécessaire"]
[]
[null,null,""]
["Code Fond","Budget ",null,null,"Engagé","Réceptionné","M. Forte",null,"Atterissage"]
[null,null,null,null,{"$f":"SUM(E137:E147)","v":0},{"$f":"SUM(F137:F147)","v":0},{"$f":"SUM(G137:G147)","v":0},{"$f":"SUM(H137:H147)","v":0},{"$f":"SUM(I137:I147)","v":0}]
[null,null,"N° SAP","Description","Engagé","Réceptionné","Maturité forte","Maturité faible","Atterrissage"]
[null,null,null,null,null,null,null,null,{"$f":"IF(F137=\"\",E137,F137)+G137+H137","v":0}]
[null,null,null,null,null,null,null,null,{"$f":"IF(F138=\"\",E138,F138)+G138+H138","v":0}]
[null,null,null,null,null,null,null,null,0]
[null,null,null,null,null,null,null,null,0]
[null,null,null,null,null,null,null,null,0]
[null,null,null,null,null,null,null,null,0]
[null,null,null,null,null,null,null,null,0]
[null,null,null,null,null,null,null,null,0]
[null,null,null,null,null,null,null,null,0]
[null,null,null,null,null,null,null,null,0]
["Insérer des lignes ici si nécessaire"]
[]
[null,null,""]
["Code Fond","Budget ",null,null,"Engagé","Réceptionné","M. Forte",null,"Atterissage"]
[null,null,null,null,{"$f":"SUM(E153:E163)","v":0},{"$f":"SUM(F153:F163)","v":0},{"$f":"SUM(G153:G163)","v":0},{"$f":"SUM(H153:H163)","v":0},{"$f":"SUM(I153:I163)","v":0}]
[null,null,"N° SAP","Description","Engagé","Réceptionné","Maturité forte","Maturité faible","Atterrissage"]
[null,null,null,null,null,null,null,null,{"$f":"IF(F153=\"\",E153,F153)+G153+H153","v":0}]
[null,null,null,null,null,null,null,null,{"$f":"IF(F154=\"\",E154,F154)+G154+H154","v":0}]
[null,null,null,null,null,null,null,null,0]
[null,null,null,null,null,null,null,null,0]
[null,null,null,null,null,null,null,null,0]
[null,null,null,null,null,null,null,null,0]
[null,null,null,null,null,null,null,null,0]
[null,null,null,null,null,null,null,null,0]
[null,null,null,null,null,null,null,null,0]
[null,null,null,null,null,null,null,null,0]
["Insérer des lignes ici si nécessaire"]
[]
[null,null,""]
["Code Fond","Budget ",null,null,"Engagé","Réceptionné","M. Forte",null,"Atterissage"]
[null,null,null,null,{"$f":"SUM(E169:E179)","v":0},{"$f":"SUM(F169:F179)","v":0},{"$f":"SUM(G169:G179)","v":0},{"$f":"SUM(H169:H179)","v":0},{"$f":"SUM(I169:I179)","v":0}]
[null,null,"N° SAP","Description","Engagé","Réceptionné","Maturité forte","Maturité faible","Atterrissage"]
[null,null,null,null,null,null,null,null,{"$f":"IF(F169=\"\",E169,F169)+G169+H169","v":0}]
[null,null,null,null,null,null,null,null,{"$f":"IF(F170=\"\",E170,F170)+G170+H170","v":0}]
[null,null,null,null,null,null,null,null,0]
[null,null,null,null,null,null,null,null,0]
[null,null,null,null,null,null,null,null,0]
[null,null,null,null,null,null,null,null,0]
[null,null,null,null,null,null,null,null,0]
[null,null,null,null,null,null,null,null,0]
[null,null,null,null,null,null,null,null,0]
[null,null,null,null,null,null,null,null,0]
["Insérer des lignes ici si nécessaire"]
[]
[null,null,""]
["Code Fond","Budget ",null,null,"Engagé","Réceptionné","M. Forte",null,"Atterissage"]
[null,null,null,null,{"$f":"SUM(E185:E195)","v":0},{"$f":"SUM(F185:F195)","v":0},{"$f":"SUM(G185:G195)","v":0},{"$f":"SUM(H185:H195)","v":0},{"$f":"SUM(I185:I195)","v":0}]
[null,null,"N° SAP","Description","Engagé","Réceptionné","Maturité forte","Maturité faible","Atterrissage"]
[null,null,null,null,null,null,null,null,{"$f":"IF(F185=\"\",E185,F185)+G185+H185","v":0}]
[null,null,null,null,null,null,null,null,{"$f":"IF(F186=\"\",E186,F186)+G186+H186","v":0}]
[null,null,null,null,null,null,null,null,0]
[null,null,null,null,null,null,null,null,0]
[null,null,null,null,null,null,null,null,0]
[null,null,null,null,null,null,null,null,0]
[null,null,null,null,null,null,null,null,0]
[null,null,null,null,null,null,null,null,0]
[null,null,null,null,null,null,null,null,0]
[null,null,null,null,null,null,null,null,0]
["Insérer des lignes ici si nécessaire"]
[]
[null,null,""]
["Code Fond","Budget ",null,null,"Engagé","Réceptionné","M. Forte",null,"Atterissage"]
[null,null,null,null,{"$f":"SUM(E201:E211)","v":0},{"$f":"SUM(F201:F211)","v":0},{"$f":"SUM(G201:G211)","v":0},{"$f":"SUM(H201:H211)","v":0},{"$f":"SUM(I201:I211)","v":0}]
[null,null,"N° SAP","Description","Engagé","Réceptionné","Maturité forte","Maturité faible","Atterrissage"]
[null,null,null,null,null,null,null,null,{"$f":"IF(F201=\"\",E201,F201)+G201+H201","v":0}]
[null,null,null,null,null,null,null,null,{"$f":"IF(F202=\"\",E202,F202)+G202+H202","v":0}]
[null,null,null,null,null,null,null,null,0]
[null,null,null,null,null,null,null,null,0]
[null,null,null,null,null,null,null,null,0]
[null,null,null,null,null,null,null,null,0]
[null,null,null,null,null,null,null,null,0]
[null,null,null,null,null,null,null,null,0]
[null,null,null,null,null,null,null,null,0]
[null,null,null,null,null,null,null,null,0]
["Insérer des lignes ici si nécessaire"]
[]
[null,null,""]
["Code Fond","Budget ",null,null,"Engagé","Réceptionné","M. Forte",null,"Atterissage"]
[null,null,null,null,{"$f":"SUM(E217:E227)","v":0},{"$f":"SUM(F217:F227)","v":0},{"$f":"SUM(G217:G227)","v":0},{"$f":"SUM(H217:H227)","v":0},{"$f":"SUM(I217:I227)","v":0}]
[null,null,"N° SAP","Description","Engagé","Réceptionné","Maturité forte","Maturité faible","Atterrissage"]
[null,null,null,null,null,null,null,null,{"$f":"IF(F217=\"\",E217,F217)+G217+H217","v":0}]
[null,null,null,null,null,null,null,null,{"$f":"IF(F218=\"\",E218,F218)+G218+H218","v":0}]
[null,null,null,null,null,null,null,null,0]
[null,null,null,null,null,null,null,null,0]
[null,null,null,null,null,null,null,null,0]
[null,null,null,null,null,null,null,null,0]
[null,null,null,null,null,null,null,null,0]
[null,null,null,null,null,null,null,null,0]
[null,null,null,null,null,null,null,null,0]
[null,null,null,null,null,null,null,null,0]
["Insérer des lignes ici si nécessaire"]
[]
[null,null,""]
["Code Fond","Budget ",null,null,"Engagé","Réceptionné","M. Forte",null,"Atterissage"]
[null,null,null,null,{"$f":"SUM(E233:E243)","v":0},{"$f":"SUM(F233:F243)","v":0},{"$f":"SUM(G233:G243)","v":0},{"$f":"SUM(H233:H243)","v":0},{"$f":"SUM(I233:I243)","v":0}]
[null,null,"N° SAP","Description","Engagé","Réceptionné","Maturité forte","Maturité faible","Atterrissage"]
[null,null,null,null,null,null,null,null,{"$f":"IF(F233=\"\",E233,F233)+G233+H233","v":0}]
[null,null,null,null,null,null,null,null,{"$f":"IF(F234=\"\",E234,F234)+G234+H234","v":0}]
[null,null,null,null,null,null,null,null,0]
[null,null,null,null,null,null,null,null,0]
[null,null,null,null,null,null,null,null,0]
[null,null,null,null,null,null,null,null,0]
[null,null,null,null,null,null,null,null,0]
[null,null,null,null,null,null,null,null,0]
[null,null,null,null,null,null,null,null,0]
[null,null,null,null,null,null,null,null,0]
["Insérer des lignes ici si nécessaire"]
[]
[null,null,""]
["Code Fond","Budget ",null,null,"Engagé","Réceptionné","M. Forte",null,"Atterissage"]
[null,null,null,null,{"$f":"SUM(E249:E259)","v":0},{"$f":"SUM(F249:F259)","v":0},{"$f":"SUM(G249:G259)","v":0},{"$f":"SUM(H249:H259)","v":0},{"$f":"SUM(I249:I259)","v":0}]
[null,null,"N° SAP","Description","Engagé","Réceptionné","Maturité forte","Maturité faible","Atterrissage"]
[null,null,null,null,null,null,null,null,{"$f":"IF(F249=\"\",E249,F249)+G249+H249","v":0}]
[null,null,null,null,null,null,null,null,{"$f":"IF(F250=\"\",E250,F250)+G250+H250","v":0}]
[null,null,null,null,null,null,null,null,0]
[null,null,null,null,null,null,null,null,0]
[null,null,null,null,null,null,null,null,0]
[null,null,null,null,null,null,null,null,0]
[null,null,null,null,null,null,null,null,0]
[null,null,null,null,null,null,null,null,0]
[null,null,null,null,null,null,null,null,0]
[null,null,null,null,null,null,null,null,0]
["Insérer des lignes ici si nécessaire"]
[]
[null,null,""]
["Code Fond","Budget ",null,null,"Engagé","Réceptionné","M. Forte",null,"Atterissage"]
[null,null,null,null,{"$f":"SUM(E265:E275)","v":0},{"$f":"SUM(F265:F275)","v":0},{"$f":"SUM(G265:G275)","v":0},{"$f":"SUM(H265:H275)","v":0},{"$f":"SUM(I265:I275)","v":0}]
[null,null,"N° SAP","Description","Engagé","Réceptionné","Maturité forte","Maturité faible","Atterrissage"]
[null,null,null,null,null,null,null,null,{"$f":"IF(F265=\"\",E265,F265)+G265+H265","v":0}]
[null,null,null,null,null,null,null,null,{"$f":"IF(F266=\"\",E266,F266)+G266+H266","v":0}]
[null,null,null,null,null,null,null,null,0]
[null,null,null,null,null,null,null,null,0]
[null,null,null,null,null,null,null,null,0]
[null,null,null,null,null,null,null,null,0]
[null,null,null,null,null,null,null,null,0]
[null,null,null,null,null,null,null,null,0]
[null,null,null,null,null,null,null,null,0]
[null,null,null,null,null,null,null,null,0]
["Insérer des lignes ici si nécessaire"]
[]
[null,null,""]
["Code Fond","Budget ",null,null,"Engagé","Réceptionné","M. Forte",null,"Atterissage"]
[null,null,null,null,{"$f":"SUM(E281:E291)","v":0},{"$f":"SUM(F281:F291)","v":0},{"$f":"SUM(G281:G291)","v":0},{"$f":"SUM(H281:H291)","v":0},{"$f":"SUM(I281:I291)","v":0}]
[null,null,"N° SAP","Description","Engagé","Réceptionné","Maturité forte","Maturité faible","Atterrissage"]
[null,null,null,null,null,null,null,null,{"$f":"IF(F281=\"\",E281,F281)+G281+H281","v":0}]
[null,null,null,null,null,null,null,null,{"$f":"IF(F282=\"\",E282,F282)+G282+H282","v":0}]
[null,null,null,null,null,null,null,null,0]
[null,null,null,null,null,null,null,null,0]
[null,null,null,null,null,null,null,null,0]
[null,null,null,null,null,null,null,null,0]
[null,null,null,null,null,null,null,null,0]
[null,null,null,null,null,null,null,null,0]
[null,null,null,null,null,null,null,null,0]
[null,null,null,null,null,null,null,null,0]
["Insérer des lignes ici si nécessaire"]
[]
[null,null,""]
["Code Fond","Budget ",null,null,"Engagé","Réceptionné","M. Forte",null,"Atterissage"]
[null,null,null,null,{"$f":"SUM(E297:E307)","v":0},{"$f":"SUM(F297:F307)","v":0},{"$f":"SUM(G297:G307)","v":0},{"$f":"SUM(H297:H307)","v":0},{"$f":"SUM(I297:I307)","v":0}]
[null,null,"N° SAP","Description","Engagé","Réceptionné","Maturité forte","Maturité faible","Atterrissage"]
[null,null,null,null,null,null,null,null,{"$f":"IF(F297=\"\",E297,F297)+G297+H297","v":0}]
[null,null,null,null,null,null,null,null,{"$f":"IF(F298=\"\",E298,F298)+G298+H298","v":0}]
[null,null,null,null,null,null,null,null,0]
[null,null,null,null,null,null,null,null,0]
[null,null,null,null,null,null,null,null,0]
[null,null,null,null,null,null,null,null,0]
[null,null,null,null,null,null,null,null,0]
[null,null,null,null,null,null,null,null,0]
[null,null,null,null,null,null,null,null,0]
[null,null,null,null,null,null,null,null,0]
["Insérer des lignes ici si nécessaire"]
[]
[null,null,""]
["Code Fond","Budget ",null,null,"Engagé","Réceptionné","M. Forte",null,"Atterissage"]
[null,null,null,null,{"$f":"SUM(E313:E323)","v":0},{"$f":"SUM(F313:F323)","v":0},{"$f":"SUM(G313:G323)","v":0},{"$f":"SUM(H313:H323)","v":0},{"$f":"SUM(I313:I323)","v":0}]
[null,null,"N° SAP","Description","Engagé","Réceptionné","Maturité forte","Maturité faible","Atterrissage"]
[null,null,null,null,null,null,null,null,{"$f":"IF(F313=\"\",E313,F313)+G313+H313","v":0}]
[null,null,null,null,null,null,null,null,{"$f":"IF(F314=\"\",E314,F314)+G314+H314","v":0}]
[null,null,null,null,null,null,null,null,0]
[null,null,null,null,null,null,null,null,0]
[null,null,null,null,null,null,null,null,0]
[null,null,null,null,null,null,null,null,0]
[null,null,null,null,null,null,null,null,0]
[null,null,null,null,null,null,null,null,0]
[null,null,null,null,null,null,null,null,0]
[null,null,null,null,null,null,null,null,0]
["Insérer des lignes ici si nécessaire"]
[]
[null,null,""]
["Code Fond","Budget ",null,null,"Engagé","Réceptionné","M. Forte",null,"Atterissage"]
[null,null,null,null,{"$f":"SUM(E329:E339)","v":0},{"$f":"SUM(F329:F339)","v":0},{"$f":"SUM(G329:G339)","v":0},{"$f":"SUM(H329:H339)","v":0},{"$f":"SUM(I329:I339)","v":0}]
[null,null,"N° SAP","Description","Engagé","Réceptionné","Maturité forte","Maturité faible","Atterrissage"]
[null,null,null,null,null,null,null,null,{"$f":"IF(F329=\"\",E329,F329)+G329+H329","v":0}]
[null,null,null,null,null,null,null,null,{"$f":"IF(F330=\"\",E330,F330)+G330+H330","v":0}]
[null,null,null,null,null,null,null,null,0]
[null,null,null,null,null,null,null,null,0]
[null,null,null,null,null,null,null,null,0]
[null,null,null,null,null,null,null,null,0]
[null,null,null,null,null,null,null,null,0]
[null,null,null,null,null,null,null,null,0]
[null,null,null,null,null,null,null,null,0]
[null,null,null,null,null,null,null,null,0]
["Insérer des lignes ici si nécessaire"]
[]
[null,null,""]
["Code Fond","Budget ",null,null,"Engagé","Réceptionné","M. Forte",null,"Atterissage"]
[null,null,null,null,{"$f":"SUM(E345:E355)","v":0},{"$f":"SUM(F345:F355)","v":0},{"$f":"SUM(G345:G355)","v":0},{"$f":"SUM(H345:H355)","v":0},{"$f":"SUM(I345:I355)","v":0}]
[null,null,"N° SAP","Description","Engagé","Réceptionné","Maturité forte","Maturité faible","Atterrissage"]
[null,null,null,null,null,null,null,null,{"$f":"IF(F345=\"\",E345,F345)+G345+H345","v":0}]
[null,null,null,null,null,null,null,null,{"$f":"IF(F346=\"\",E346,F346)+G346+H346","v":0}]
[null,null,null,null,null,null,null,null,0]
[null,null,null,null,null,null,null,null,0]
[null,null,null,null,null,null,null,null,0]
[null,null,null,null,null,null,null,null,0]
[null,null,null,null,null,null,null,null,0]
[null,null,null,null,null,null,null,null,0]
[null,null,null,null,null,null,null,null,0]
[null,null,null,null,null,null,null,null,0]
["Insérer des lignes ici si nécessaire"]
[]
[null,null,""]
["Code Fond","Budget ",null,null,"Engagé","Réceptionné","M. Forte",null,"Atterissage"]
[null,null,null,null,{"$f":"SUM(E361:E371)","v":0},{"$f":"SUM(F361:F371)","v":0},{"$f":"SUM(G361:G371)","v":0},{"$f":"SUM(H361:H371)","v":0},{"$f":"SUM(I361:I371)","v":0}]
[null,null,"N° SAP","Description","Engagé","Réceptionné","Maturité forte","Maturité faible","Atterrissage"]
[null,null,null,null,null,null,null,null,{"$f":"IF(F361=\"\",E361,F361)+G361+H361","v":0}]
[null,null,null,null,null,null,null,null,{"$f":"IF(F362=\"\",E362,F362)+G362+H362","v":0}]
[null,null,null,null,null,null,null,null,0]
[null,null,null,null,null,null,null,null,0]
[null,null,null,null,null,null,null,null,0]
[null,null,null,null,null,null,null,null,0]
[null,null,null,null,null,null,null,null,0]
[null,null,null,null,null,null,null,null,0]
[null,null,null,null,null,null,null,null,0]
[null,null,null,null,null,null,null,null,0]
["Insérer des lignes ici si nécessaire"]
[]
[null,null,""]
["Code Fond","Budget ",null,null,"Engagé","Réceptionné","M. Forte",null,"Atterissage"]
[null,null,null,null,{"$f":"SUM(E377:E387)","v":0},{"$f":"SUM(F377:F387)","v":0},{"$f":"SUM(G377:G387)","v":0},{"$f":"SUM(H377:H387)","v":0},{"$f":"SUM(I377:I387)","v":0}]
[null,null,"N° SAP","Description","Engagé","Réceptionné","Maturité forte","Maturité faible","Atterrissage"]
[null,null,null,null,null,null,null,null,{"$f":"IF(F377=\"\",E377,F377)+G377+H377","v":0}]
[null,null,null,null,null,null,null,null,{"$f":"IF(F378=\"\",E378,F378)+G378+H378","v":0}]
[null,null,null,null,null,null,null,null,0]
[null,null,null,null,null,null,null,null,0]
[null,null,null,null,null,null,null,null,0]
[null,null,null,null,null,null,null,null,0]
[null,null,null,null,null,null,null,null,0]
[null,null,null,null,null,null,null,null,0]
[null,null,null,null,null,null,null,null,0]
[null,null,null,null,null,null,null,null,0]
["Insérer des lignes ici si nécessaire"]
[]
[null,null,""]
["Code Fond","Budget ",null,null,"Engagé","Réceptionné","M. Forte",null,"Atterissage"]
[null,null,null,null,{"$f":"SUM(E393:E403)","v":0},{"$f":"SUM(F393:F403)","v":0},{"$f":"SUM(G393:G403)","v":0},{"$f":"SUM(H393:H403)","v":0},{"$f":"SUM(I393:I403)","v":0}]
[null,null,"N° SAP","Description","Engagé","Réceptionné","Maturité forte","Maturité faible","Atterrissage"]
[null,null,null,null,null,null,null,null,{"$f":"IF(F393=\"\",E393,F393)+G393+H393","v":0}]
[null,null,null,null,null,null,null,null,{"$f":"IF(F394=\"\",E394,F394)+G394+H394","v":0}]
[null,null,null,null,null,null,null,null,0]
[null,null,null,null,null,null,null,null,0]
[null,null,null,null,null,null,null,null,0]
[null,null,null,null,null,null,null,null,0]
[null,null,null,null,null,null,null,null,0]
[null,null,null,null,null,null,null,null,0]
[null,null,null,null,null,null,null,null,0]
[null,null,null,null,null,null,null,null,0]
["Insérer des lignes ici si nécessaire"]
[]
[null,null,""]
["Code Fond","Budget ",null,null,"Engagé","Réceptionné","M. Forte",null,"Atterissage"]
[null,null,null,null,{"$f":"SUM(E409:E419)","v":0},{"$f":"SUM(F409:F419)","v":0},{"$f":"SUM(G409:G419)","v":0},{"$f":"SUM(H409:H419)","v":0},{"$f":"SUM(I409:I419)","v":0}]
[null,null,"N° SAP","Description","Engagé","Réceptionné","Maturité forte","Maturité faible","Atterrissage"]
[null,null,null,null,null,null,null,null,{"$f":"IF(F409=\"\",E409,F409)+G409+H409","v":0}]
[null,null,null,null,null,null,null,null,{"$f":"IF(F410=\"\",E410,F410)+G410+H410","v":0}]
[null,null,null,null,null,null,null,null,0]
[null,null,null,null,null,null,null,null,0]
[null,null,null,null,null,null,null,null,0]
[null,null,null,null,null,null,null,null,0]
[null,null,null,null,null,null,null,null,0]
[null,null,null,null,null,null,null,null,0]
[null,null,null,null,null,null,null,null,0]
[null,null,null,null,null,null,null,null,0]
["Insérer des lignes ici si nécessaire"]
[]
[null,null,""]
["Code Fond","Budget ",null,null,"Engagé","Réceptionné","M. Forte",null,"Atterissage"]
[null,null,null,null,{"$f":"SUM(E425:E435)","v":0},{"$f":"SUM(F425:F435)","v":0},{"$f":"SUM(G425:G435)","v":0},{"$f":"SUM(H425:H435)","v":0},{"$f":"SUM(I425:I435)","v":0}]
[null,null,"N° SAP","Description","Engagé","Réceptionné","Maturité forte","Maturité faible","Atterrissage"]
[null,null,null,null,null,null,null,null,{"$f":"IF(F425=\"\",E425,F425)+G425+H425","v":0}]
[null,null,null,null,null,null,null,null,{"$f":"IF(F426=\"\",E426,F426)+G426+H426","v":0}]
[null,null,null,null,null,null,null,null,0]
[null,null,null,null,null,null,null,null,0]
[null,null,null,null,null,null,null,null,0]
[null,null,null,null,null,null,null,null,0]
[null,null,null,null,null,null,null,null,0]
[null,null,null,null,null,null,null,null,0]
[null,null,null,null,null,null,null,null,0]
[null,null,null,null,null,null,null,null,0]
["Insérer des lignes ici si nécessaire"]
[]
[null,null,""]
["Code Fond","Budget ",null,null,"Engagé","Réceptionné","M. Forte",null,"Atterissage"]
[null,null,null,null,{"$f":"SUM(E441:E451)","v":0},{"$f":"SUM(F441:F451)","v":0},{"$f":"SUM(G441:G451)","v":0},{"$f":"SUM(H441:H451)","v":0},{"$f":"SUM(I441:I451)","v":0}]
[null,null,"N° SAP","Description","Engagé","Réceptionné","Maturité forte","Maturité faible","Atterrissage"]
[null,null,null,null,null,null,null,null,{"$f":"IF(F441=\"\",E441,F441)+G441+H441","v":0}]
[null,null,null,null,null,null,null,null,{"$f":"IF(F442=\"\",E442,F442)+G442+H442","v":0}]
[null,null,null,null,null,null,null,null,0]
[null,null,null,null,null,null,null,null,0]
[null,null,null,null,null,null,null,null,0]
[null,null,null,null,null,null,null,null,0]
[null,null,null,null,null,null,null,null,0]
[null,null,null,null,null,null,null,null,0]
[null,null,null,null,null,null,null,null,0]
[null,null,null,null,null,null,null,null,0]
["Insérer des lignes ici si nécessaire"]
[]
[null,null,""]
["Code Fond","Budget ",null,null,"Engagé","Réceptionné","M. Forte",null,"Atterissage"]
[null,null,null,null,{"$f":"SUM(E457:E467)","v":0},{"$f":"SUM(F457:F467)","v":0},{"$f":"SUM(G457:G467)","v":0},{"$f":"SUM(H457:H467)","v":0},{"$f":"SUM(I457:I467)","v":0}]
[null,null,"N° SAP","Description","Engagé","Réceptionné","Maturité forte","Maturité faible","Atterrissage"]
[null,null,null,null,null,null,null,null,{"$f":"IF(F457=\"\",E457,F457)+G457+H457","v":0}]
[null,null,null,null,null,null,null,null,{"$f":"IF(F458=\"\",E458,F458)+G458+H458","v":0}]
[null,null,null,null,null,null,null,null,0]
[null,null,null,null,null,null,null,null,0]
[null,null,null,null,null,null,null,null,0]
[null,null,null,null,null,null,null,null,0]
[null,null,null,null,null,null,null,null,0]
[null,null,null,null,null,null,null,null,0]
[null,null,null,null,null,null,null,null,0]
[null,null,null,null,null,null,null,null,0]
["Insérer des lignes ici si nécessaire"]
[]
[null,null,""]
["Code Fond","Budget ",null,null,"Engagé","Réceptionné","M. Forte",null,"Atterissage"]
[null,null,null,null,{"$f":"SUM(E473:E483)","v":0},{"$f":"SUM(F473:F483)","v":0},{"$f":"SUM(G473:G483)","v":0},{"$f":"SUM(H473:H483)","v":0},{"$f":"SUM(I473:I483)","v":0}]
[null,null,"N° SAP","Description","Engagé","Réceptionné","Maturité forte","Maturité faible","Atterrissage"]
[null,null,null,null,null,null,null,null,{"$f":"IF(F473=\"\",E473,F473)+G473+H473","v":0}]
[null,null,null,null,null,null,null,null,{"$f":"IF(F474=\"\",E474,F474)+G474+H474","v":0}]
[null,null,null,null,null,null,null,null,0]
[null,null,null,null,null,null,null,null,0]
[null,null,null,null,null,null,null,null,0]
[null,null,null,null,null,null,null,null,0]
[null,null,null,null,null,null,null,null,0]
[null,null,null,null,null,null,null,null,0]
[null,null,null,null,null,null,null,null,0]
[null,null,null,null,null,null,null,null,0]
["Insérer des lignes ici si nécessaire"]
[]
[null,null,""]
["Code Fond","Budget ",null,null,"Engagé","Réceptionné","M. Forte",null,"Atterissage"]
[null,null,null,null,{"$f":"SUM(E489:E499)","v":0},{"$f":"SUM(F489:F499)","v":0},{"$f":"SUM(G489:G499)","v":0},{"$f":"SUM(H489:H499)","v":0},{"$f":"SUM(I489:I499)","v":0}]
[null,null,"N° SAP","Description","Engagé","Réceptionné","Maturité forte","Maturité faible","Atterrissage"]
[null,null,null,null,null,null,null,null,{"$f":"IF(F489=\"\",E489,F489)+G489+H489","v":0}]
[null,null,null,null,null,null,null,null,{"$f":"IF(F490=\"\",E490,F490)+G490+H490","v":0}]
[null,null,null,null,null,null,null,null,0]
[null,null,null,null,null,null,null,null,0]
[null,null,null,null,null,null,null,null,0]
[null,null,null,null,null,null,null,null,0]
[null,null,null,null,null,null,null,null,0]
[null,null,null,null,null,null,null,null,0]
[null,null,null,null,null,null,null,null,0]
[null,null,null,null,null,null,null,null,0]
["Insérer des lignes ici si nécessaire"]
[]
[null,null,""]
["Code Fond","Budget ",null,null,"Engagé","Réceptionné","M. Forte",null,"Atterissage"]
[null,null,null,null,{"$f":"SUM(E505:E515)","v":0},{"$f":"SUM(F505:F515)","v":0},{"$f":"SUM(G505:G515)","v":0},{"$f":"SUM(H505:H515)","v":0},{"$f":"SUM(I505:I515)","v":0}]
[null,null,"N° SAP","Description","Engagé","Réceptionné","Maturité forte","Maturité faible","Atterrissage"]
[null,null,null,null,null,null,null,null,{"$f":"IF(F505=\"\",E505,F505)+G505+H505","v":0}]
[null,null,null,null,null,null,null,null,{"$f":"IF(F506=\"\",E506,F506)+G506+H506","v":0}]
[null,null,null,null,null,null,null,null,0]
[null,null,null,null,null,null,null,null,0]
[null,null,null,null,null,null,null,null,0]
[null,null,null,null,null,null,null,null,0]
[null,null,null,null,null,null,null,null,0]
[null,null,null,null,null,null,null,null,0]
[null,null,null,null,null,null,null,null,0]
[null,null,null,null,null,null,null,null,0]
["Insérer des lignes ici si nécessaire"]